Workbook

Sheet גיליון1
A1: =[1]הערות!A1 -> V2.01 | B1: =[1]הערות!C2 -> הראל חברה לביטוח בע"מ | BB1: 'נספחים ב וג'!$ | CG1: לא קיים מידע נוסף בשורה זו. המשך בשורה הבאה.
A2: דו"ח חודשי , שיעורי ההשקעות ורכוש קבוע מסך כל ההתחייבויות לתקופה שנסתיימה ביום - | L2: =[1]הערות!C4 -> 31.1.22 | AI2: =AJ2-1 -> 50 | AJ2: 51 | AK2: 52 | AL2: 53 | AM2: 54 | AN2: 55 | AO2: 56 | AP2: 57 | AQ2: 58 | AR2: 59 | AS2: 60 | AT2: 61 | AU2: 62 | AV2: 63 | AW2: 64 | AX2: 65 | AY2: 66 | AZ2: 67 | BA2: =BB2-1 -> 68 | BB2: 69 | BC2: =BB2+1 -> 70 | BD2: =BC2+1 -> 71 | BE2: 72 | BF2: 73 | BG2: 74 | BH2: 75 | BI2: 76 | BJ2: 77 | BK2: 78 | BL2: 79 | BM2: 80 | BN2: 81 | BO2: 82 | BP2: 83 | BQ2: 84 | BR2: 85 | BS2: 86 | BT2: 87 | BU2: 88 | BV2: 89 | BW2: 90 | BX2: 91 | BY2: 92 | BZ2: 93 | CA2: 94 | CB2: 95 | CC2: 96 | CD2: 97 | CE2: 98 | CF2: 99 | CG2: לא קיים מידע נוסף בשורה זו. המשך בשורה הבאה.
A3: =CONCATENATE([1]הערות!$G$103) -> הסכומים באלפי ש"ח | O3: 1 | P3: =O3+1 -> 2 | Q3: =P3+1 -> 3 | R3: 4 | S3: 5 | T3: 6 | U3: 7 | V3: 8 | W3: 9 | X3: 10 | Y3: 11 | Z3: 12 | AA3: 13 | AB3: 14 | AC3: 15 | AD3: 16 | AE3: 17 | AF3: 18 | AG3: 19 | AH3: 20 | AI3: 21 | AJ3: 22 | AK3: 23 | AL3: 24 | AM3: 25 | AN3: 26 | AO3: 27 | AP3: 28 | AQ3: 29 | AR3: 30 | AS3: 31 | AT3: 32 | AU3: 33 | AV3: 34 | AW3: 35 | AX3: 36 | AY3: 37 | AZ3: 38 | BA3: 39 | BB3: 40 | BC3: 41 | BD3: 42 | BE3: 43 | BF3: 44 | BG3: 45 | BH3: 46 | BI3: 47 | BJ3: 48 | BK3: 49 | BL3: 50 | BM3: 51 | BN3: 52 | BO3: 53 | BP3: 54 | BQ3: 55 | BR3: 56 | BS3: 57 | BT3: 58 | BU3: 59 | BV3: 60 | BW3: 61 | BX3: 62 | BY3: 63 | BZ3: 64 | CA3: 65 | CB3: 66 | CC3: 67 | CD3: 68 | CE3: 69 | CF3: 70 | CG3: לא קיים מידע נוסף בשורה זו. המשך בשורה הבאה.
A6: גיליון זה הוא הגיליון היחיד בקובץ זה. גבולות הגיליון הם טור CG ושורה 496. גיליון זה מכיל טבלה המתחילה בתא A7 ומסתיימת בתא CG496. שורות 7 עד 10 מכילות את כותרות הטבלה. קיימים תאים ריקים בטבלה.
J7: סה"כ משתתף ברווחים | K7: ביטוח חיים
K8: 10 | L8: 11 | M8: 12 | N8: 13
I9: חזרה | K9: ='[1]נספחים ב וג'!$B$10 -> קרן ח' | L9: ='[1]נספחים ב וג'!$B$11 -> קרן ט' | M9: ='[1]נספחים ב וג'!$B$12 -> קרן י' | N9: ='[1]נספחים ב וג'!$B$13 -> קרן י' פוליסות שהונפקו לאחר 1.1.04 | O9: ='[1]נספחים ב וג'!$C$30 -> הראל-מסלול כללי | P9: ='[1]נספחים ב וג'!$C$31 -> הראל-מסלול אג"ח ללא מניות | Q9: ='[1]נספחים ב וג'!$C$32 -> הראל-מסלול אג"ח עד 20% במניות | R9: ='[1]נספחים ב וג'!$C$33 -> הראל-מסלול אג"ח עד 10% במניות | S9: ='[1]נספחים ב וג'!$C$34 -> הראל-מסלול מניות | T9: ='[1]נספחים ב וג'!$C$35 -> הראל-מסלול שקלי טווח קצר | U9: ='[1]נספחים ב וג'!$C$36 -> הראל-מסלול חו"ל | V9: ='[1]נספחים ב וג'!$C$37 -> הראל - מסלול אג"ח מדינת ישראל | W9: ='[1]נספחים ב וג'!$C$38 -> הראל - מסלול אג"ח קונצרני | X9: ='[1]נספחים ב וג'!$C$39 -> הראל-מסלול משתתף ברווחים שקלי טווח קצר | Y9: ='[1]נספחים ב וג'!$C$40 -> הראל-מסלול משתתף ברווחים כללי ללא מניות | Z9: ='[1]נספחים ב וג'!$C$41 -> הראל-מסלול משתתף ברווחים לפחות 75% מניות | AA9: ='[1]נספחים ב וג'!$C$42 -> הראל- אג"ח חו"ל | AB9: ='[1]נספחים ב וג'!$C$43 -> הראל-מסלול פאסיבי - כללי | AC9: ='[1]נספחים ב וג'!$C$44 -> הראל-מסלול לבני 50 ומטה | AD9: ='[1]נספחים ב וג'!$C$45 -> הראל-מסלול לבני 50 עד 60 | AE9: ='[1]נספחים ב וג'!$C$46 -> הראל-מסלול לבני 60 ומעלה | AF9: ='[1]נספחים ב וג'!$C$47 -> הראל-מסלול בסיסי למקבלי קצבה | AG9: ='[1]נספחים ב וג'!$C$48 -> הראל-מסלול אג"ח עד 20% במניות למקבלי קצבה | AH9: הראל חברה לביטוח בע"מ מדרגות עד 50 | AI9: הראל מסלול לגילאי 50 עד 60 | AJ9: הראל מסלול לגילאי 60 ומעלה | AK9: הראל מסלול בסיסי למקבלי קצבה | AL9: הראל מסלול אג"ח עד 20% במניות למקבלי קצבה | AM9: הראל מסלול הוני ללא אג"ח | AN9: הראל מחקה מדד ממשלתי שקלי ריבית קבועה | AO9: הראל מחקה מדד S&P 500 | AP9: הראל מחקה מדד ממשלתי צמוד 5-10 | AQ9: הראל מחקה מדד תל בונד 60 | AR9: הראל מחקה מדד ת"א 35 | AS9: =INDIRECT(CONCATENATE($BB$1,"C$",AS$2)) ->  | BB9: =INDIRECT(CONCATENATE($BB$1,"C$",BB$2)) ->  | BC9: =INDIRECT(CONCATENATE($BB$1,"C$",BC$2)) ->  | CG9: אחר
A10: שורה | K10: =IF('[1]נספחים ב וג'!$N$10=0,0,CONCATENATE(VLOOKUP($B$1,[1]הערות!$D$89:$F$111,3,0),"0",K8)) -> 0010 | L10: =IF('[1]נספחים ב וג'!$N$11=0,0,CONCATENATE(VLOOKUP($B$1,[1]הערות!$D$89:$F$111,3,0),"0",L8)) -> 0011 | M10: =IF('[1]נספחים ב וג'!$N$12=0,0,CONCATENATE(VLOOKUP($B$1,[1]הערות!$D$89:$F$111,3,0),"0",M8)) -> 0012 | N10: =IF('[1]נספחים ב וג'!$N$13=0,0,CONCATENATE(VLOOKUP($B$1,[1]הערות!$D$89:$F$111,3,0),"0",N8)) -> 0013 | O10: ='[1]נספחים ב וג'!$B$30 -> 88 | P10: ='[1]נספחים ב וג'!$B$31 -> 89 | Q10: ='[1]נספחים ב וג'!$B$32 -> 90 | R10: ='[1]נספחים ב וג'!$B$33 -> 91 | S10: ='[1]נספחים ב וג'!$B$34 -> 92 | T10: ='[1]נספחים ב וג'!$B$35 -> 93 | U10: ='[1]נספחים ב וג'!$B$36 -> 163 | V10: ='[1]נספחים ב וג'!$B$37 -> 177 | W10: ='[1]נספחים ב וג'!$B$38 -> 178 | X10: ='[1]נספחים ב וג'!$B$39 -> 195 | Y10: ='[1]נספחים ב וג'!$B$40 -> 196 | Z10: ='[1]נספחים ב וג'!$B$41 -> 197 | AA10: ='[1]נספחים ב וג'!$B$42 -> 8592 | AB10: ='[1]נספחים ב וג'!$B$43 -> 9561 | AC10: ='[1]נספחים ב וג'!$B$44 -> 9562 | AD10: ='[1]נספחים ב וג'!$B$45 -> 9563 | AE10: ='[1]נספחים ב וג'!$B$46 -> 9564 | AF10: ='[1]נספחים ב וג'!$B$47 -> 9565 | AG10: ='[1]נספחים ב וג'!$B$48 -> 9566 | AH10: 11400 | AI10: 11401 | AJ10: 11402 | AK10: 11403 | AL10: 11404 | AM10: 12981 | AN10: 13433 | AO10: 13434 | AP10: 13435 | AQ10: 13436 | AR10: 13437 | AS10: =INDIRECT(CONCATENATE($BB$1,"b$",AS$2)) ->  | BB10: =INDIRECT(CONCATENATE($BB$1,"b$",BB$2)) ->  | BC10: =INDIRECT(CONCATENATE($BB$1,"b$",BC$2)) -> 
A11: 10 | B11: 1. | C11: השקעות | J11: =SUM(K11:CG11) -> 80254930.8 | K11: =SUM(K12,K25,K393,K418,K455,K487,K495) -> 3964.835746 | L11: 928109.4176 | M11: 24831656.94 | N11: 804753.6412 | O11: 24120106.88 | P11: 1359963.251 | Q11: 6536675.97 | R11: 1755473.36 | S11: 2575846.941 | T11: 569860.8093 | U11: 373655.92 | V11: 293151.44 | W11: 132873.1 | X11: 44337.21044 | Y11: 76607.74299 | Z11: 106352.1424 | AA11: 24087.74 | AB11: 252884.28 | AC11: 2405645.519 | AD11: 874841.6446 | AE11: 1377663.881 | AF11: 2084163.55 | AG11: 927474.4754 | AH11: 54310.62145 | AI11: 135052.0671 | AJ11: 255121.4257 | AK11: 1057595.004 | AL11: 390842.9861 | AM11: 473219.46 | AN11: 19066.31 | AO11: 196308.47 | AP11: 52114.47 | AQ11: 54199.29 | AR11: 52572.21 | AS11: 0 | AT11: 0 | AU11: 0 | AV11: 0 | AW11: 0 | AX11: 0 | AY11: 0 | AZ11: 0 | BA11: 0 | BB11: 0 | BC11: 0 | BD11: 0 | BE11: 0 | BF11: 0 | BG11: 0 | BH11: 0 | BI11: 0 | BJ11: 0 | BK11: 0 | BL11: 0 | BM11: 0 | BN11: 0 | BO11: 0 | BP11: 0 | BQ11: 0 | BR11: 0 | BS11: 0 | BT11: 0 | BU11: 0 | BV11: 0 | BW11: 0 | BX11: 0 | BY11: 0 | BZ11: 0 | CA11: 0 | CB11: 0 | CC11: 0 | CD11: 0 | CE11: 0 | CF11: 0 | CG11: 5054377.8
A12: =A11+1 -> 11 | C12: א. | D12: מזומנים ושווי מזומנים | J12: =SUM(K12:CG12) -> 4710593.17 | K12: =SUM(K13,K21) -> 109.1802973 | L12: 44641.98738 | M12: 1424705.173 | N12: 46172.37888 | O12: 1379788.89 | P12: 58943.0444 | Q12: 301749.38 | R12: 80057.04 | S12: 231840.3826 | T12: 108168.0023 | U12: 28128.39 | V12: 15332.88 | W12: 7568.61 | X12: 8415.857701 | Y12: 3320.3056 | Z12: 9572.277369 | AA12: 1963.92 | AB12: 17433.86 | AC12: 152002.102 | AD12: 39054.52903 | AE12: 54332.31917 | AF12: 122228.8027 | AG12: 40723.50487 | AH12: 3431.647995 | AI12: 6028.970968 | AJ12: 10061.48083 | AK12: 62024.19727 | AL12: 17161.11513 | AM12: 154042.54 | AN12: 344.31 | AO12: 3504.64 | AP12: 968.3 | AQ12: 971.46 | AR12: 900.74 | AS12: 0 | AT12: 0 | AU12: 0 | AV12: 0 | AW12: 0 | AX12: 0 | AY12: 0 | AZ12: 0 | BA12: 0 | BB12: 0 | BC12: 0 | BD12: 0 | BE12: 0 | BF12: 0 | BG12: 0 | BH12: 0 | BI12: 0 | BJ12: 0 | BK12: 0 | BL12: 0 | BM12: 0 | BN12: 0 | BO12: 0 | BP12: 0 | BQ12: 0 | BR12: 0 | BS12: 0 | BT12: 0 | BU12: 0 | BV12: 0 | BW12: =SUM(BW13,BW21) -> 0 | BX12: 0 | BY12: 0 | BZ12: 0 | CA12: 0 | CB12: 0 | CC12: 0 | CD12: 0 | CE12: 0 | CF12: 0 | CG12: =SUM(CG13,CG21) -> 274900.95
A13: 12 | D13: (1 | E13: בישראל | J13: 4710593.17 | K13: =SUM(K14:K20) -> 109.1802973 | L13: 44641.98738 | M13: 1424705.173 | N13: 46172.37888 | O13: 1379788.89 | P13: 58943.0444 | Q13: 301749.38 | R13: 80057.04 | S13: 231840.3826 | T13: 108168.0023 | U13: 28128.39 | V13: 15332.88 | W13: 7568.61 | X13: 8415.857701 | Y13: 3320.3056 | Z13: 9572.277369 | AA13: 1963.92 | AB13: 17433.86 | AC13: 152002.102 | AD13: 39054.52903 | AE13: 54332.31917 | AF13: 122228.8027 | AG13: 40723.50487 | AH13: 3431.647995 | AI13: 6028.970968 | AJ13: 10061.48083 | AK13: 62024.19727 | AL13: 17161.11513 | AM13: 154042.54 | AN13: 344.31 | AO13: 3504.64 | AP13: 968.3 | AQ13: 971.46 | AR13: 900.74 | AS13: 0 | AT13: 0 | AU13: 0 | AV13: 0 | AW13: 0 | AX13: 0 | AY13: 0 | AZ13: 0 | BA13: 0 | BB13: 0 | BC13: =SUM(BC14:BC20) -> 0 | BD13: 0 | BE13: 0 | BF13: 0 | BG13: 0 | BH13: 0 | BI13: 0 | BJ13: 0 | BK13: 0 | BL13: 0 | BM13: 0 | BN13: 0 | BO13: 0 | BP13: 0 | BQ13: 0 | BR13: 0 | BS13: 0 | BT13: 0 | BU13: 0 | BV13: 0 | BW13: 0 | BX13: 0 | BY13: 0 | BZ13: 0 | CA13: 0 | CB13: 0 | CC13: 0 | CD13: 0 | CE13: 0 | CF13: 0 | CG13: =SUM(CG14:CG20) -> 274900.95
A14: 13 | E14: א) | F14: יתרות מזומנים ועו"ש בשקלים חדשים | J14: 3365529.41 | K14: 74.97325929 | L14: 30655.30482 | M14: 978333.9392 | N14: 31706.21273 | O14: 1019667.48 | P14: 49773.22704 | Q14: 243808.13 | R14: 67876.18 | S14: 144084.0266 | T14: 63939.83222 | U14: 12369.5 | V14: 13513.76 | W14: 6087.99 | X14: 4974.747781 | Y14: 2803.762957 | Z14: 5948.97339 | AA14: 927.01 | AB14: 15449.19 | AC14: 110336.6936 | AD14: 25539.06404 | AE14: 39006.67464 | AF14: 90744.57553 | AG14: 30871.43345 | AH14: 2490.996429 | AI14: 3942.54596 | AJ14: 7223.415364 | AK14: 46047.73447 | AL14: 13009.39655 | AM14: 146038.38 | AN14: 344.31 | AO14: 3504.64 | AP14: 968.3 | AQ14: 971.46 | AR14: 900.74 | CG14: 151594.81
A15: 14 | E15: ב) | F15: יתרות מזומנים ועו"ש נקובים במט"ח | J15: 1020795.13 | K15: 23.91304531 | L15: 9777.642057 | M15: 312043.8412 | N15: 10112.83368 | O15: 329230.22 | P15: 5320.218148 | Q15: 43160.42 | R15: 7466.08 | S15: 66248.31482 | T15: 2.356644615 | U15: 12694.86 | W15: 971.1 | X15: 0.1833553852 | Y15: 299.6918515 | Z15: 2735.275181 | AA15: 971.81 | AB15: 1984.67 | AC15: 37670.80195 | AD15: 12137.6263 | AE15: 12310.43361 | AF15: 26709.05616 | AG15: 7696.191431 | AH15: 850.4680545 | AI15: 1873.723699 | AJ15: 2279.696388 | AK15: 13553.33384 | AL15: 3243.218569 | AM15: 7830.31 | CG15: 91596.84
A16: 15 | E16: ג) | F16: פח"ק/פר"י | J16: 324268.63 | K16: 10.29399274 | L16: 4209.040507 | M16: 134327.393 | N16: 4353.332465 | O16: 30891.19 | P16: 3849.599209 | Q16: 14780.83 | R16: 4714.78 | S16: 21508.0412 | T16: 44225.81344 | U16: 3064.03 | V16: 1819.12 | W16: 509.52 | X16: 3440.926565 | Y16: 216.8507911 | Z16: 888.0287969 | AA16: 65.1 | AC16: 3994.606488 | AD16: 1377.838691 | AE16: 3015.210923 | AF16: 4775.171046 | AG16: 2155.879988 | AH16: 90.18351171 | AI16: 212.7013094 | AJ16: 558.3690768 | AK16: 2423.128954 | AL16: 908.5000122 | AM16: 173.85 | CG16: 31709.3
A17: 16 | E17: ד) | F17: פק"מ לתקופה של עד שלושה חודשים | J17: 0 | K17: 0 | L17: 0 | M17: 0 | N17: 0 | P17: 0 | S17: 0 | T17: 0 | X17: 0 | Y17: 0 | Z17: 0 | AC17: 0 | AD17: 0 | AE17: 0 | AF17: 0 | AG17: 0 | AH17: 0 | AI17: 0 | AJ17: 0 | AK17: 0 | AL17: 0 | CG17: 0
A18: 17 | E18: ה) | F18: פיקדון צמוד מדד עד שלושה חודשים | J18: 0 | K18: 0 | L18: 0 | M18: 0 | N18: 0 | P18: 0 | S18: 0 | T18: 0 | X18: 0 | Y18: 0 | Z18: 0 | AC18: 0 | AD18: 0 | AE18: 0 | AF18: 0 | AG18: 0 | AH18: 0 | AI18: 0 | AJ18: 0 | AK18: 0 | AL18: 0 | CG18: 0
A19: 18 | E19: ו) | F19: פיקדון צמוד מט"ח עד שלושה חודשים (פצ"מ) | J19: 0 | K19: 0 | L19: 0 | M19: 0 | N19: 0 | P19: 0 | S19: 0 | T19: 0 | X19: 0 | Y19: 0 | Z19: 0 | AC19: 0 | AD19: 0 | AE19: 0 | AF19: 0 | AG19: 0 | AH19: 0 | AI19: 0 | AJ19: 0 | AK19: 0 | AL19: 0 | CG19: 0
A20: 19 | E20: ז) | F20: פיקדונות במט"ח עד שלושה חודשים | J20: 0 | K20: 0 | L20: 0 | M20: 0 | N20: 0 | P20: 0 | S20: 0 | T20: 0 | X20: 0 | Y20: 0 | Z20: 0 | AC20: 0 | AD20: 0 | AE20: 0 | AF20: 0 | AG20: 0 | AH20: 0 | AI20: 0 | AJ20: 0 | AK20: 0 | AL20: 0 | CG20: 0
A21: 20 | D21: (2 | E21: בחו"ל | J21: 0 | K21: =SUM(K22:K23) -> 0 | L21: =SUM(L22:L23) -> 0 | M21: 0 | N21: 0 | O21: 0 | P21: 0 | Q21: 0 | R21: 0 | S21: 0 | T21: 0 | U21: 0 | V21: 0 | W21: 0 | X21: 0 | Y21: 0 | Z21: 0 | AA21: 0 | AB21: 0 | AC21: 0 | AD21: 0 | AE21: 0 | AF21: 0 | AG21: 0 | AH21: 0 | AI21: 0 | AJ21: 0 | AK21: 0 | AL21: 0 | AM21: 0 | AN21: 0 | AO21: 0 | AP21: 0 | AQ21: 0 | AR21: 0 | AS21: 0 | AT21: 0 | AU21: 0 | AV21: 0 | AW21: 0 | AX21: 0 | AY21: 0 | AZ21: 0 | BA21: 0 | BB21: 0 | BC21: 0 | BD21: 0 | BE21: 0 | BF21: 0 | BG21: 0 | BH21: 0 | BI21: 0 | BJ21: 0 | BK21: 0 | BL21: 0 | BM21: 0 | BN21: 0 | BO21: 0 | BP21: 0 | BQ21: 0 | BR21: 0 | BS21: 0 | BT21: 0 | BU21: 0 | BV21: 0 | BW21: 0 | BX21: =SUM(BX22:BX23) -> 0 | BY21: 0 | BZ21: 0 | CA21: 0 | CB21: 0 | CC21: 0 | CD21: 0 | CE21: 0 | CF21: 0 | CG21: =SUM(CG22:CG23) -> 0
A22: 21 | E22: א) | F22: יתרות מזומנים ועו"ש נקובים במט"ח | J22: 0 | K22: 0 | L22: 0 | M22: 0 | N22: 0 | P22: 0 | S22: 0 | T22: 0 | X22: 0 | Y22: 0 | Z22: 0 | AC22: 0 | AD22: 0 | AE22: 0 | AF22: 0 | AG22: 0 | AH22: 0 | AI22: 0 | AJ22: 0 | AK22: 0 | AL22: 0 | CG22: 0
A23: 22 | E23: ב) | F23: פיקדונות במט"ח עד שלושה חודשים | J23: 0 | K23: 0 | L23: 0 | M23: 0 | N23: 0 | P23: 0 | S23: 0 | T23: 0 | X23: 0 | Y23: 0 | Z23: 0 | AC23: 0 | AD23: 0 | AE23: 0 | AF23: 0 | AG23: 0 | AH23: 0 | AI23: 0 | AJ23: 0 | AK23: 0 | AL23: 0 | CG23: 0
A24: 23 | AC24: 0 | AD24: 0 | AE24: 0 | AF24: 0 | AG24: 0 | AH24: 0 | AI24: 0 | AJ24: 0 | AK24: 0 | AL24: 0 | CG24: 0
A25: 24 | C25: ב. | D25: ניירות ערך (למעט בחברות מוחזקות) | J25: 57791062.5 | K25: =SUM(K26,K97,K156,K190,K198,K210,K218,K235,K176,K45,K281) -> 3393.608067 | L25: =SUM(L26,L97,L156,L190,L198,L210,L218,L235,L176,L45,L281) -> 700582.0497 | M25: 17520647.54 | N25: 567815.7079 | O25: 16639640.54 | P25: 912432.6113 | Q25: 4631459.33 | R25: 1177353.45 | S25: 2279780.822 | T25: 442482.795 | U25: 315040.04 | V25: 278345.73 | W25: 96385.28 | X25: 34426.74505 | Y25: 51398.0087 | Z25: 94128.09846 | AA25: 20160.68 | AB25: 240022.26 | AC25: 1859509.588 | AD25: 687704.2703 | AE25: 1061836.001 | AF25: 1611840.701 | AG25: 691349.277 | AH25: 41980.88227 | AI25: 106163.0797 | AJ25: 196635.1287 | AK25: 817917.8994 | AL25: 291338.493 | AM25: 310927.13 | AN25: 18734.57 | AO25: 191161.33 | AP25: 52598.04 | AQ25: 52811.57 | AR25: 48906.29 | AS25: 0 | AT25: 0 | AU25: 0 | AV25: 0 | AW25: 0 | AX25: 0 | AY25: 0 | AZ25: 0 | BA25: 0 | BB25: 0 | BC25: 0 | BD25: 0 | BE25: 0 | BF25: 0 | BG25: 0 | BH25: 0 | BI25: 0 | BJ25: 0 | BK25: 0 | BL25: 0 | BM25: 0 | BN25: 0 | BO25: 0 | BP25: 0 | BQ25: 0 | BR25: 0 | BS25: 0 | BT25: 0 | BU25: 0 | BV25: 0 | BW25: 0 | BX25: =SUM(BX26,BX97,BX156,BX190,BX198,BX210,BX218,BX235,BX176,BX45,BX281) -> 0 | BY25: 0 | BZ25: 0 | CA25: 0 | CB25: 0 | CC25: 0 | CD25: 0 | CE25: 0 | CF25: 0 | CG25: =SUM(CG26,CG97,CG156,CG190,CG198,CG210,CG218,CG235,CG176,CG45,CG281) -> 3744152.95
A26: 25 | D26: (1 | E26: אגרות חוב ממשלתיות: | J26: 13448249.66 | K26: =SUM(K27,K37) -> 2306.664937 | L26: =SUM(L27,L37) -> 256149.2843 | M26: 3337012.422 | N26: 108147.1484 | O26: 3093820.23 | P26: 498176.7335 | Q26: 1593862.41 | R26: 495503.3 | S26: 227781.0454 | T26: 440743.4149 | U26: 29032.43 | V26: 278307.45 | W26: 119.3 | X26: 34291.41506 | Y26: 28062.66651 | Z26: 9404.674551 | AA26: 610.26 | AB26: 0 | AC26: 374208.5385 | AD26: 192884.3966 | AE26: 402196.9886 | AF26: 427878.3514 | AG26: 271754.618 | AH26: 8448.251465 | AI26: 29776.17337 | AJ26: 74480.48144 | AK26: 217124.0386 | AL26: 114518.932 | AM26: 0 | AN26: 0 | AO26: 0 | AP26: 0 | AQ26: 0 | AR26: 0 | AS26: 0 | AT26: 0 | AU26: 0 | AV26: 0 | AW26: 0 | AX26: 0 | AY26: 0 | AZ26: 0 | BA26: 0 | BB26: 0 | BC26: 0 | BD26: 0 | BE26: 0 | BF26: 0 | BG26: 0 | BH26: 0 | BI26: 0 | BJ26: 0 | BK26: 0 | BL26: 0 | BM26: 0 | BN26: 0 | BO26: 0 | BP26: 0 | BQ26: 0 | BR26: 0 | BS26: 0 | BT26: 0 | BU26: 0 | BV26: 0 | BW26: 0 | BX26: =SUM(BX27,BX37) -> 0 | BY26: 0 | BZ26: 0 | CA26: 0 | CB26: 0 | CC26: 0 | CD26: 0 | CE26: 0 | CF26: 0 | CG26: =SUM(CG27,CG37) -> 901648.04
A27: 26 | E27: א) | F27: בישראל | J27: 13448249.66 | K27: =SUM(K28,K35:K36) -> 2306.664937 | L27: =SUM(L28,L35:L36) -> 256149.2843 | M27: 3337012.422 | N27: 108147.1484 | O27: 3093820.23 | P27: 498176.7335 | Q27: 1593862.41 | R27: 495503.3 | S27: 227781.0454 | T27: 440743.4149 | U27: 29032.43 | V27: 278307.45 | W27: 119.3 | X27: 34291.41506 | Y27: 28062.66651 | Z27: 9404.674551 | AA27: 610.26 | AB27: 0 | AC27: 374208.5385 | AD27: 192884.3966 | AE27: 402196.9886 | AF27: 427878.3514 | AG27: 271754.618 | AH27: 8448.251465 | AI27: 29776.17337 | AJ27: 74480.48144 | AK27: 217124.0386 | AL27: 114518.932 | AM27: 0 | AN27: 0 | AO27: 0 | AP27: 0 | AQ27: 0 | AR27: 0 | AS27: 0 | AT27: 0 | AU27: 0 | AV27: 0 | AW27: 0 | AX27: 0 | AY27: 0 | AZ27: 0 | BA27: 0 | BB27: 0 | BC27: 0 | BD27: 0 | BE27: 0 | BF27: 0 | BG27: 0 | BH27: 0 | BI27: 0 | BJ27: 0 | BK27: 0 | BL27: 0 | BM27: 0 | BN27: 0 | BO27: 0 | BP27: 0 | BQ27: 0 | BR27: 0 | BS27: 0 | BT27: 0 | BU27: 0 | BV27: 0 | BW27: 0 | BX27: =SUM(BX28,BX35:BX36) -> 0 | BY27: 0 | BZ27: 0 | CA27: 0 | CB27: 0 | CC27: 0 | CD27: 0 | CE27: 0 | CF27: 0 | CG27: =SUM(CG28,CG35:CG36) -> 901648.04
A28: 27 | F28: (1) | G28: סחיר | J28: 13294612.03 | K28: =SUM(K29:K33) -> 255.7273008 | L28: =SUM(L29:L33) -> 104562.5925 | M28: 3337012.422 | N28: 108147.1484 | O28: 3093820.23 | P28: 498176.7335 | Q28: 1593862.41 | R28: 495503.3 | S28: 227781.0454 | T28: 440743.4149 | U28: 29032.43 | V28: 278307.45 | W28: 119.3 | X28: 34291.41506 | Y28: 28062.66651 | Z28: 9404.674551 | AA28: 610.26 | AB28: 0 | AC28: 374208.5385 | AD28: 192884.3966 | AE28: 402196.9886 | AF28: 427878.3514 | AG28: 271754.618 | AH28: 8448.251465 | AI28: 29776.17337 | AJ28: 74480.48144 | AK28: 217124.0386 | AL28: 114518.932 | AM28: 0 | AN28: 0 | AO28: 0 | AP28: 0 | AQ28: 0 | AR28: 0 | AS28: 0 | AT28: 0 | AU28: 0 | AV28: 0 | AW28: 0 | AX28: 0 | AY28: 0 | AZ28: 0 | BA28: 0 | BB28: 0 | BC28: 0 | BD28: 0 | BE28: 0 | BF28: 0 | BG28: 0 | BH28: 0 | BI28: 0 | BJ28: 0 | BK28: 0 | BL28: 0 | BM28: 0 | BN28: 0 | BO28: 0 | BP28: 0 | BQ28: 0 | BR28: 0 | BS28: 0 | BT28: 0 | BU28: 0 | BV28: 0 | BW28: 0 | BX28: =SUM(BX29:BX33) -> 0 | BY28: 0 | BZ28: 0 | CA28: 0 | CB28: 0 | CC28: 0 | CD28: 0 | CE28: 0 | CF28: 0 | CG28: =SUM(CG29:CG33) -> 901648.04
A29: 28 | G29: (א) | H29: צמוד מדד | J29: 6613709.9 | K29: 87.93772369 | L29: 35956.25628 | M29: 1147508.598 | N29: 37188.88842 | O29: 2592528.33 | P29: 87616.68677 | Q29: 622764.87 | R29: 243509.45 | S29: 0 | T29: 0 | V29: 98248.66 | W29: 79.45 | X29: 0 | Y29: 4935.513234 | Z29: 0 | AC29: 316044.4594 | AD29: 112361.0932 | AE29: 220853.1512 | AF29: 194359.4255 | AG29: 114958.9491 | AH29: 7135.12064 | AI29: 17345.53676 | AJ29: 40898.48879 | AK29: 98626.40455 | AL29: 48444.35091 | CG29: 572258.28
A30: 29 | G30: (ג) | H30: לא צמוד בריבית קבועה | J30: 4396333.15 | K30: 117.7902599 | L30: 48162.45625 | M30: 1537057.479 | N30: 49813.53448 | O30: 361574.33 | P30: 305923.9178 | Q30: 777462.66 | R30: 197906.59 | S30: 22682.89363 | T30: 162.4878628 | U30: 1545.36 | V30: 125898.82 | W30: 23.53 | X30: 12.64213725 | Y30: 17232.92218 | Z30: 936.5363658 | AA30: 213.66 | AC30: 35612.0803 | AD30: 60673.11037 | AE30: 142964.1286 | AF30: 174791.1217 | AG30: 123931.8063 | AH30: 803.9896973 | AI30: 9366.299633 | AJ30: 26474.68139 | AK30: 88696.59828 | AL30: 52225.56367 | CG30: 234066.16
A31: 30 | G31: (ד) | H31: לא צמוד בריבית משתנה | J31: 841453.46 | K31: 24.73802888 | L31: 10114.96396 | M31: 322809.1385 | N31: 10461.71947 | O31: 48530.07 | P31: 70725.81231 | Q31: 125344.92 | R31: 27785.95 | S31: 5212.716212 | T31: 0 | U31: 348.78 | V31: 30298.03 | W31: 5.33 | X31: 0 | Y31: 3984.037693 | Z31: 215.2237883 | AA31: 48.39 | AC31: 6308.595142 | AD31: 12988.42571 | AE31: 22191.36278 | AF31: 35640.29042 | AG31: 22186.61503 | AH31: 142.4248585 | AI31: 2005.06429 | AJ31: 4109.487219 | AK31: 18085.42958 | AL31: 9349.564974 | CG31: 52536.38
A32: 31 | G32: (ה) | H32: צמוד מט"ח | J32: 0 | K32: 0 | L32: 0 | M32: 0 | N32: 0 | P32: 0 | S32: 0 | T32: 0 | X32: 0 | Y32: 0 | Z32: 0 | AC32: 0 | AD32: 0 | AE32: 0 | AF32: 0 | AG32: 0 | AH32: 0 | AI32: 0 | AJ32: 0 | AK32: 0 | AL32: 0 | CG32: 0
A33: 32 | G33: (ו) | H33: מק"מ | J33: 1443115.52 | K33: 25.26128838 | L33: 10328.91597 | M33: 329637.2067 | N33: 10683.00606 | O33: 91187.5 | P33: 33910.3166 | Q33: 68289.96 | R33: 26301.31 | S33: 199885.4356 | T33: 440580.9271 | U33: 27138.29 | V33: 23861.94 | W33: 10.99 | X33: 34278.77292 | Y33: 1910.193395 | Z33: 8252.914397 | AA33: 348.21 | AC33: 16243.40373 | AD33: 6861.767313 | AE33: 16188.34596 | AF33: 23087.51385 | AG33: 10677.24754 | AH33: 366.7162698 | AI33: 1059.272687 | AJ33: 2997.824039 | AK33: 11715.60615 | AL33: 4499.452462 | CG33: 42787.22
A34: 33 | F34: (2) | G34: לא סחיר | J34: 153637.6294 | K34: =SUM(K35:K36) -> 2050.937637 | L34: =SUM(L35:L36) -> 151586.6918 | M34: 0 | N34: 0 | O34: 0 | P34: 0 | Q34: 0 | R34: 0 | S34: 0 | T34: 0 | U34: 0 | V34: 0 | W34: 0 | X34: 0 | Y34: 0 | Z34: 0 | AA34: 0 | AB34: 0 | AC34: 0 | AD34: 0 | AE34: 0 | AF34: 0 | AG34: 0 | AH34: 0 | AI34: 0 | AJ34: 0 | AK34: 0 | AL34: 0 | AM34: 0 | AN34: 0 | AO34: 0 | AP34: 0 | AQ34: 0 | AR34: 0 | AS34: 0 | AT34: 0 | AU34: 0 | AV34: 0 | AW34: 0 | AX34: 0 | AY34: 0 | AZ34: 0 | BA34: 0 | BB34: 0 | BC34: 0 | BD34: 0 | BE34: 0 | BF34: 0 | BG34: 0 | BH34: 0 | BI34: 0 | BJ34: 0 | BK34: 0 | BL34: 0 | BM34: 0 | BN34: 0 | BO34: 0 | BP34: 0 | BQ34: 0 | BR34: 0 | BS34: 0 | BT34: 0 | BU34: 0 | BV34: 0 | BW34: 0 | BX34: =SUM(BX35:BX36) -> 0 | BY34: 0 | BZ34: 0 | CA34: 0 | CB34: 0 | CC34: 0 | CD34: 0 | CE34: 0 | CF34: 0 | CG34: =SUM(CG35:CG36) -> 0
A35: 34 | G35: (א) | H35: אג"ח מיועדות - הסכמי "חץ" כולל אג"ח של חברת החשמל | J35: 153637.6294 | K35: 2050.937637 | L35: 151586.6918 | M35: 0 | N35: 0 | P35: 0 | S35: 0 | T35: 0 | X35: 0 | Y35: 0 | Z35: 0 | AC35: 0 | AD35: 0 | AE35: 0 | AF35: 0 | AG35: 0 | AH35: 0 | AI35: 0 | AJ35: 0 | AK35: 0 | AL35: 0 | CG35: 0
A36: 35 | G36: (ב) | H36: אג"ח לא סחירות אחרות | J36: 0 | K36: 0 | L36: 0 | M36: 0 | N36: 0 | P36: 0 | S36: 0 | T36: 0 | X36: 0 | Y36: 0 | Z36: 0 | AC36: 0 | AD36: 0 | AE36: 0 | AF36: 0 | AG36: 0 | AH36: 0 | AI36: 0 | AJ36: 0 | AK36: 0 | AL36: 0 | CG36: 0
A37: 36 | E37: ב) | F37: בחו"ל | J37: 0 | K37: =SUM(K41,K38) -> 0 | L37: =SUM(L41,L38) -> 0 | M37: 0 | N37: 0 | O37: 0 | P37: 0 | Q37: 0 | R37: 0 | S37: 0 | T37: 0 | U37: 0 | V37: 0 | W37: 0 | X37: 0 | Y37: 0 | Z37: 0 | AA37: 0 | AB37: 0 | AC37: 0 | AD37: 0 | AE37: 0 | AF37: 0 | AG37: 0 | AH37: 0 | AI37: 0 | AJ37: 0 | AK37: 0 | AL37: 0 | AM37: 0 | AN37: 0 | AO37: 0 | AP37: 0 | AQ37: 0 | AR37: 0 | AS37: 0 | AT37: 0 | AU37: 0 | AV37: 0 | AW37: 0 | AX37: 0 | AY37: 0 | AZ37: 0 | BA37: 0 | BB37: 0 | BC37: 0 | BD37: 0 | BE37: 0 | BF37: 0 | BG37: 0 | BH37: 0 | BI37: 0 | BJ37: 0 | BK37: 0 | BL37: 0 | BM37: 0 | BN37: 0 | BO37: 0 | BP37: 0 | BQ37: 0 | BR37: 0 | BS37: 0 | BT37: 0 | BU37: 0 | BV37: 0 | BW37: 0 | BX37: =SUM(BX41,BX38) -> 0 | BY37: 0 | BZ37: 0 | CA37: 0 | CB37: 0 | CC37: 0 | CD37: 0 | CE37: 0 | CF37: 0 | CG37: =SUM(CG41,CG38) -> 0
A38: 37 | F38: (1) | G38: סחיר | J38: 0 | K38: =SUM(K39:K40) -> 0 | L38: =SUM(L39:L40) -> 0 | M38: 0 | N38: 0 | O38: 0 | P38: 0 | Q38: 0 | R38: 0 | S38: 0 | T38: 0 | U38: 0 | V38: 0 | W38: 0 | X38: 0 | Y38: 0 | Z38: 0 | AA38: 0 | AB38: 0 | AC38: 0 | AD38: 0 | AE38: 0 | AF38: 0 | AG38: 0 | AH38: 0 | AI38: 0 | AJ38: 0 | AK38: 0 | AL38: 0 | AM38: 0 | AN38: 0 | AO38: 0 | AP38: 0 | AQ38: 0 | AR38: 0 | AS38: 0 | AT38: 0 | AU38: 0 | AV38: 0 | AW38: 0 | AX38: 0 | AY38: 0 | AZ38: 0 | BA38: 0 | BB38: 0 | BC38: 0 | BD38: 0 | BE38: 0 | BF38: 0 | BG38: 0 | BH38: 0 | BI38: 0 | BJ38: 0 | BK38: 0 | BL38: 0 | BM38: 0 | BN38: 0 | BO38: 0 | BP38: 0 | BQ38: 0 | BR38: 0 | BS38: 0 | BT38: 0 | BU38: 0 | BV38: 0 | BW38: 0 | BX38: =SUM(BX39:BX40) -> 0 | BY38: 0 | BZ38: 0 | CA38: 0 | CB38: 0 | CC38: 0 | CD38: 0 | CE38: 0 | CF38: 0 | CG38: =SUM(CG39:CG40) -> 0
A39: 38 | G39: (א) | H39: ממשלת ישראל שהונפקו בחו"ל | J39: 0 | K39: 0 | L39: 0 | M39: 0 | N39: 0 | P39: 0 | S39: 0 | T39: 0 | X39: 0 | Y39: 0 | Z39: 0 | AC39: 0 | AD39: 0 | AE39: 0 | AF39: 0 | AG39: 0 | AH39: 0 | AI39: 0 | AJ39: 0 | AK39: 0 | AL39: 0 | CG39: 0
A40: 39 | G40: (ב) | H40: שהנפיקה ממשלה זרה | J40: 0 | K40: 0 | L40: 0 | M40: 0 | N40: 0 | P40: 0 | S40: 0 | T40: 0 | X40: 0 | Y40: 0 | Z40: 0 | AC40: 0 | AD40: 0 | AE40: 0 | AF40: 0 | AG40: 0 | AH40: 0 | AI40: 0 | AJ40: 0 | AK40: 0 | AL40: 0 | CG40: 0
A41: 40 | F41: (2) | G41: לא סחיר | J41: 0 | K41: =SUM(K42:K43) -> 0 | L41: =SUM(L42:L43) -> 0 | M41: 0 | N41: 0 | O41: 0 | P41: 0 | Q41: 0 | R41: 0 | S41: 0 | T41: 0 | U41: 0 | V41: 0 | W41: 0 | X41: 0 | Y41: 0 | Z41: 0 | AA41: 0 | AB41: 0 | AC41: 0 | AD41: 0 | AE41: 0 | AF41: 0 | AG41: 0 | AH41: 0 | AI41: 0 | AJ41: 0 | AK41: 0 | AL41: 0 | AM41: 0 | AN41: 0 | AO41: 0 | AP41: 0 | AQ41: 0 | AR41: 0 | AS41: 0 | AT41: 0 | AU41: 0 | AV41: 0 | AW41: 0 | AX41: 0 | AY41: 0 | AZ41: 0 | BA41: 0 | BB41: 0 | BC41: 0 | BD41: 0 | BE41: 0 | BF41: 0 | BG41: 0 | BH41: 0 | BI41: 0 | BJ41: 0 | BK41: 0 | BL41: 0 | BM41: 0 | BN41: 0 | BO41: 0 | BP41: 0 | BQ41: 0 | BR41: 0 | BS41: 0 | BT41: 0 | BU41: 0 | BV41: 0 | BW41: 0 | BX41: =SUM(BX42:BX43) -> 0 | BY41: 0 | BZ41: 0 | CA41: 0 | CB41: 0 | CC41: 0 | CD41: 0 | CE41: 0 | CF41: 0 | CG41: =SUM(CG42:CG43) -> 0
A42: 41 | G42: (א) | H42: ממשלת ישראל שהונפקו בחו"ל | J42: 0 | K42: 0 | L42: 0 | M42: 0 | N42: 0 | P42: 0 | S42: 0 | T42: 0 | X42: 0 | Y42: 0 | Z42: 0 | AC42: 0 | AD42: 0 | AE42: 0 | AF42: 0 | AG42: 0 | AH42: 0 | AI42: 0 | AJ42: 0 | AK42: 0 | AL42: 0 | CG42: 0
A43: 42 | G43: (ב) | H43: שהנפיקה ממשלה זרה | J43: 0 | K43: 0 | L43: 0 | M43: 0 | N43: 0 | P43: 0 | S43: 0 | T43: 0 | X43: 0 | Y43: 0 | Z43: 0 | AC43: 0 | AD43: 0 | AE43: 0 | AF43: 0 | AG43: 0 | AH43: 0 | AI43: 0 | AJ43: 0 | AK43: 0 | AL43: 0 | CG43: 0
A44: 43 | AC44: 0 | AD44: 0 | AE44: 0 | AF44: 0 | AG44: 0 | AH44: 0 | AI44: 0 | AJ44: 0 | AK44: 0 | AL44: 0 | CG44: 0
A45: 44 | D45: (2 | E45: תעודות חוב מסחריות: | J45: 0 | K45: =SUM(K46,K77) -> 0 | L45: =SUM(L46,L77) -> 0 | M45: 0 | N45: 0 | O45: 0 | P45: 0 | Q45: 0 | R45: 0 | S45: 0 | T45: 0 | U45: 0 | V45: 0 | W45: 0 | X45: 0 | Y45: 0 | Z45: 0 | AA45: 0 | AB45: 0 | AC45: 0 | AD45: 0 | AE45: 0 | AF45: 0 | AG45: 0 | AH45: 0 | AI45: 0 | AJ45: 0 | AK45: 0 | AL45: 0 | AM45: 0 | AN45: 0 | AO45: 0 | AP45: 0 | AQ45: 0 | AR45: 0 | AS45: 0 | AT45: 0 | AU45: 0 | AV45: 0 | AW45: 0 | AX45: 0 | AY45: 0 | AZ45: 0 | BA45: 0 | BB45: 0 | BC45: 0 | BD45: 0 | BE45: 0 | BF45: 0 | BG45: 0 | BH45: 0 | BI45: 0 | BJ45: 0 | BK45: 0 | BL45: 0 | BM45: 0 | BN45: 0 | BO45: 0 | BP45: 0 | BQ45: 0 | BR45: 0 | BS45: 0 | BT45: 0 | BU45: 0 | BV45: 0 | BW45: 0 | BX45: =SUM(BX46,BX77) -> 0 | BY45: 0 | BZ45: 0 | CA45: 0 | CB45: 0 | CC45: 0 | CD45: 0 | CE45: 0 | CF45: 0 | CG45: =SUM(CG46,CG77) -> 0
A46: 45 | E46: א) | F46: בישראל | J46: 0 | K46: =SUM(K47,K60) -> 0 | L46: =SUM(L47,L60) -> 0 | M46: 0 | N46: 0 | O46: 0 | P46: 0 | Q46: 0 | R46: 0 | S46: 0 | T46: 0 | U46: 0 | V46: 0 | W46: 0 | X46: 0 | Y46: 0 | Z46: 0 | AA46: 0 | AB46: 0 | AC46: 0 | AD46: 0 | AE46: 0 | AF46: 0 | AG46: 0 | AH46: 0 | AI46: 0 | AJ46: 0 | AK46: 0 | AL46: 0 | AM46: 0 | AN46: 0 | AO46: 0 | AP46: 0 | AQ46: 0 | AR46: 0 | AS46: 0 | AT46: 0 | AU46: 0 | AV46: 0 | AW46: 0 | AX46: 0 | AY46: 0 | AZ46: 0 | BA46: 0 | BB46: 0 | BC46: 0 | BD46: 0 | BE46: 0 | BF46: 0 | BG46: 0 | BH46: 0 | BI46: 0 | BJ46: 0 | BK46: 0 | BL46: 0 | BM46: 0 | BN46: 0 | BO46: 0 | BP46: 0 | BQ46: 0 | BR46: 0 | BS46: 0 | BT46: 0 | BU46: 0 | BV46: 0 | BW46: 0 | BX46: =SUM(BX47,BX60) -> 0 | BY46: 0 | BZ46: 0 | CA46: 0 | CB46: 0 | CC46: 0 | CD46: 0 | CE46: 0 | CF46: 0 | CG46: =SUM(CG47,CG60) -> 0
A47: 46 | F47: (1) | G47: סחיר | J47: 0 | K47: =SUM(K48,K52,K56) -> 0 | L47: =SUM(L48,L52,L56) -> 0 | M47: 0 | N47: 0 | O47: 0 | P47: 0 | Q47: 0 | R47: 0 | S47: 0 | T47: 0 | U47: 0 | V47: 0 | W47: 0 | X47: 0 | Y47: 0 | Z47: 0 | AA47: 0 | AB47: 0 | AC47: 0 | AD47: 0 | AE47: 0 | AF47: 0 | AG47: 0 | AH47: 0 | AI47: 0 | AJ47: 0 | AK47: 0 | AL47: 0 | AM47: 0 | AN47: 0 | AO47: 0 | AP47: 0 | AQ47: 0 | AR47: 0 | AS47: 0 | AT47: 0 | AU47: 0 | AV47: 0 | AW47: 0 | AX47: 0 | AY47: 0 | AZ47: 0 | BA47: 0 | BB47: 0 | BC47: 0 | BD47: 0 | BE47: 0 | BF47: 0 | BG47: 0 | BH47: 0 | BI47: 0 | BJ47: 0 | BK47: 0 | BL47: 0 | BM47: 0 | BN47: 0 | BO47: 0 | BP47: 0 | BQ47: 0 | BR47: 0 | BS47: 0 | BT47: 0 | BU47: 0 | BV47: 0 | BW47: 0 | BX47: =SUM(BX48,BX52,BX56) -> 0 | BY47: 0 | BZ47: 0 | CA47: 0 | CB47: 0 | CC47: 0 | CD47: 0 | CE47: 0 | CF47: 0 | CG47: =SUM(CG48,CG52,CG56) -> 0
A48: 47 | G48: (א) | H48: דרוג AA- ומעלה | J48: 0 | K48: =SUM(K49:K51) -> 0 | L48: =SUM(L49:L51) -> 0 | M48: 0 | N48: 0 | O48: 0 | P48: 0 | Q48: 0 | R48: 0 | S48: 0 | T48: 0 | U48: 0 | V48: 0 | W48: 0 | X48: 0 | Y48: 0 | Z48: 0 | AA48: 0 | AB48: 0 | AC48: 0 | AD48: 0 | AE48: 0 | AF48: 0 | AG48: 0 | AH48: 0 | AI48: 0 | AJ48: 0 | AK48: 0 | AL48: 0 | AM48: 0 | AN48: 0 | AO48: 0 | AP48: 0 | AQ48: 0 | AR48: 0 | AS48: 0 | AT48: 0 | AU48: 0 | AV48: 0 | AW48: 0 | AX48: 0 | AY48: 0 | AZ48: 0 | BA48: 0 | BB48: 0 | BC48: 0 | BD48: 0 | BE48: 0 | BF48: 0 | BG48: 0 | BH48: 0 | BI48: 0 | BJ48: 0 | BK48: 0 | BL48: 0 | BM48: 0 | BN48: 0 | BO48: 0 | BP48: 0 | BQ48: 0 | BR48: 0 | BS48: 0 | BT48: 0 | BU48: 0 | BV48: 0 | BW48: 0 | BX48: =SUM(BX49:BX51) -> 0 | BY48: 0 | BZ48: 0 | CA48: 0 | CB48: 0 | CC48: 0 | CD48: 0 | CE48: 0 | CF48: 0 | CG48: =SUM(CG49:CG51) -> 0
A49: 48 | H49: a | I49: צמוד מדד | J49: 0 | K49: 0 | L49: 0 | M49: 0 | N49: 0 | P49: 0 | S49: 0 | T49: 0 | X49: 0 | Y49: 0 | Z49: 0 | AC49: 0 | AD49: 0 | AE49: 0 | AF49: 0 | AG49: 0 | AH49: 0 | AI49: 0 | AJ49: 0 | AK49: 0 | AL49: 0 | CG49: 0
A50: 49 | H50: b | I50: לא צמוד | J50: 0 | K50: 0 | L50: 0 | M50: 0 | N50: 0 | P50: 0 | S50: 0 | T50: 0 | X50: 0 | Y50: 0 | Z50: 0 | AC50: 0 | AD50: 0 | AE50: 0 | AF50: 0 | AG50: 0 | AH50: 0 | AI50: 0 | AJ50: 0 | AK50: 0 | AL50: 0 | CG50: 0
A51: 50 | H51: c | I51: צמוד מט"ח | J51: 0 | K51: 0 | L51: 0 | M51: 0 | N51: 0 | P51: 0 | S51: 0 | T51: 0 | X51: 0 | Y51: 0 | Z51: 0 | AC51: 0 | AD51: 0 | AE51: 0 | AF51: 0 | AG51: 0 | AH51: 0 | AI51: 0 | AJ51: 0 | AK51: 0 | AL51: 0 | CG51: 0
A52: 51 | G52: (ב) | H52: דרוג BBB- ועד A+ | J52: 0 | K52: =SUM(K53:K55) -> 0 | L52: =SUM(L53:L55) -> 0 | M52: 0 | N52: 0 | O52: 0 | P52: 0 | Q52: 0 | R52: 0 | S52: 0 | T52: 0 | U52: 0 | V52: 0 | W52: 0 | X52: 0 | Y52: 0 | Z52: 0 | AA52: 0 | AB52: 0 | AC52: 0 | AD52: 0 | AE52: 0 | AF52: 0 | AG52: 0 | AH52: 0 | AI52: 0 | AJ52: 0 | AK52: 0 | AL52: 0 | AM52: 0 | AN52: 0 | AO52: 0 | AP52: 0 | AQ52: 0 | AR52: 0 | AS52: 0 | AT52: 0 | AU52: 0 | AV52: 0 | AW52: 0 | AX52: 0 | AY52: 0 | AZ52: 0 | BA52: 0 | BB52: 0 | BC52: 0 | BD52: 0 | BE52: 0 | BF52: 0 | BG52: 0 | BH52: 0 | BI52: 0 | BJ52: 0 | BK52: 0 | BL52: 0 | BM52: 0 | BN52: 0 | BO52: 0 | BP52: 0 | BQ52: 0 | BR52: 0 | BS52: 0 | BT52: 0 | BU52: 0 | BV52: 0 | BW52: 0 | BX52: =SUM(BX53:BX55) -> 0 | BY52: 0 | BZ52: 0 | CA52: 0 | CB52: 0 | CC52: 0 | CD52: 0 | CE52: 0 | CF52: 0 | CG52: =SUM(CG53:CG55) -> 0
A53: 52 | H53: a | I53: צמוד מדד | J53: 0 | K53: 0 | L53: 0 | M53: 0 | N53: 0 | P53: 0 | S53: 0 | T53: 0 | X53: 0 | Y53: 0 | Z53: 0 | AC53: 0 | AD53: 0 | AE53: 0 | AF53: 0 | AG53: 0 | AH53: 0 | AI53: 0 | AJ53: 0 | AK53: 0 | AL53: 0 | CG53: 0
A54: 53 | H54: b | I54: לא צמוד | J54: 0 | K54: 0 | L54: 0 | M54: 0 | N54: 0 | P54: 0 | S54: 0 | T54: 0 | X54: 0 | Y54: 0 | Z54: 0 | AC54: 0 | AD54: 0 | AE54: 0 | AF54: 0 | AG54: 0 | AH54: 0 | AI54: 0 | AJ54: 0 | AK54: 0 | AL54: 0 | CG54: 0
A55: 54 | H55: c | I55: צמוד מט"ח | J55: 0 | K55: 0 | L55: 0 | M55: 0 | N55: 0 | P55: 0 | S55: 0 | T55: 0 | X55: 0 | Y55: 0 | Z55: 0 | AC55: 0 | AD55: 0 | AE55: 0 | AF55: 0 | AG55: 0 | AH55: 0 | AI55: 0 | AJ55: 0 | AK55: 0 | AL55: 0 | CG55: 0
A56: 55 | G56: (ג) | H56: דרוג נמוך מ- BBB- או לא מדורג | J56: 0 | K56: =SUM(K57:K59) -> 0 | L56: =SUM(L57:L59) -> 0 | M56: 0 | N56: 0 | O56: 0 | P56: 0 | Q56: 0 | R56: 0 | S56: 0 | T56: 0 | U56: 0 | V56: 0 | W56: 0 | X56: 0 | Y56: 0 | Z56: 0 | AA56: 0 | AB56: 0 | AC56: 0 | AD56: 0 | AE56: 0 | AF56: 0 | AG56: 0 | AH56: 0 | AI56: 0 | AJ56: 0 | AK56: 0 | AL56: 0 | AM56: 0 | AN56: 0 | AO56: 0 | AP56: 0 | AQ56: 0 | AR56: 0 | AS56: 0 | AT56: 0 | AU56: 0 | AV56: 0 | AW56: 0 | AX56: 0 | AY56: 0 | AZ56: 0 | BA56: 0 | BB56: 0 | BC56: 0 | BD56: 0 | BE56: 0 | BF56: 0 | BG56: 0 | BH56: 0 | BI56: 0 | BJ56: 0 | BK56: 0 | BL56: 0 | BM56: 0 | BN56: 0 | BO56: 0 | BP56: 0 | BQ56: 0 | BR56: 0 | BS56: 0 | BT56: 0 | BU56: 0 | BV56: 0 | BW56: 0 | BX56: =SUM(BX57:BX59) -> 0 | BY56: 0 | BZ56: 0 | CA56: 0 | CB56: 0 | CC56: 0 | CD56: 0 | CE56: 0 | CF56: 0 | CG56: =SUM(CG57:CG59) -> 0
A57: 56 | H57: a | I57: צמוד מדד | J57: 0 | K57: 0 | L57: 0 | M57: 0 | N57: 0 | P57: 0 | S57: 0 | T57: 0 | X57: 0 | Y57: 0 | Z57: 0 | AC57: 0 | AD57: 0 | AE57: 0 | AF57: 0 | AG57: 0 | AH57: 0 | AI57: 0 | AJ57: 0 | AK57: 0 | AL57: 0 | CG57: 0
A58: 57 | H58: b | I58: לא צמוד | J58: 0 | K58: 0 | L58: 0 | M58: 0 | N58: 0 | P58: 0 | S58: 0 | T58: 0 | X58: 0 | Y58: 0 | Z58: 0 | AC58: 0 | AD58: 0 | AE58: 0 | AF58: 0 | AG58: 0 | AH58: 0 | AI58: 0 | AJ58: 0 | AK58: 0 | AL58: 0 | CG58: 0
A59: 58 | H59: c | I59: צמוד מט"ח | J59: 0 | K59: 0 | L59: 0 | M59: 0 | N59: 0 | P59: 0 | S59: 0 | T59: 0 | X59: 0 | Y59: 0 | Z59: 0 | AC59: 0 | AD59: 0 | AE59: 0 | AF59: 0 | AG59: 0 | AH59: 0 | AI59: 0 | AJ59: 0 | AK59: 0 | AL59: 0 | CG59: 0
A60: 59 | F60: (2) | G60: לא סחיר | J60: 0 | K60: =SUM(K61,K65,K73,K69) -> 0 | L60: =SUM(L61,L65,L73,L69) -> 0 | M60: 0 | N60: 0 | O60: 0 | P60: 0 | Q60: 0 | R60: 0 | S60: 0 | T60: 0 | U60: 0 | V60: 0 | W60: 0 | X60: 0 | Y60: 0 | Z60: 0 | AA60: 0 | AB60: 0 | AC60: 0 | AD60: 0 | AE60: 0 | AF60: 0 | AG60: 0 | AH60: 0 | AI60: 0 | AJ60: 0 | AK60: 0 | AL60: 0 | AM60: 0 | AN60: 0 | AO60: 0 | AP60: 0 | AQ60: 0 | AR60: 0 | AS60: 0 | AT60: 0 | AU60: 0 | AV60: 0 | AW60: 0 | AX60: 0 | AY60: 0 | AZ60: 0 | BA60: 0 | BB60: 0 | BC60: 0 | BD60: 0 | BE60: 0 | BF60: 0 | BG60: 0 | BH60: 0 | BI60: 0 | BJ60: 0 | BK60: 0 | BL60: 0 | BM60: 0 | BN60: 0 | BO60: 0 | BP60: 0 | BQ60: 0 | BR60: 0 | BS60: 0 | BT60: 0 | BU60: 0 | BV60: 0 | BW60: 0 | BX60: =SUM(BX61,BX65,BX73,BX69) -> 0 | BY60: 0 | BZ60: 0 | CA60: 0 | CB60: 0 | CC60: 0 | CD60: 0 | CE60: 0 | CF60: 0 | CG60: =SUM(CG61,CG65,CG73,CG69) -> 0
A61: 60 | G61: (א) | H61: =$H$48 -> דרוג AA- ומעלה | J61: 0 | K61: =SUM(K62:K64) -> 0 | L61: =SUM(L62:L64) -> 0 | M61: 0 | N61: 0 | O61: 0 | P61: 0 | Q61: 0 | R61: 0 | S61: 0 | T61: 0 | U61: 0 | V61: 0 | W61: 0 | X61: 0 | Y61: 0 | Z61: 0 | AA61: 0 | AB61: 0 | AC61: 0 | AD61: 0 | AE61: 0 | AF61: 0 | AG61: 0 | AH61: 0 | AI61: 0 | AJ61: 0 | AK61: 0 | AL61: 0 | AM61: 0 | AN61: 0 | AO61: 0 | AP61: 0 | AQ61: 0 | AR61: 0 | AS61: 0 | AT61: 0 | AU61: 0 | AV61: 0 | AW61: 0 | AX61: 0 | AY61: 0 | AZ61: 0 | BA61: 0 | BB61: 0 | BC61: 0 | BD61: 0 | BE61: 0 | BF61: 0 | BG61: 0 | BH61: 0 | BI61: 0 | BJ61: 0 | BK61: 0 | BL61: 0 | BM61: 0 | BN61: 0 | BO61: 0 | BP61: 0 | BQ61: 0 | BR61: 0 | BS61: 0 | BT61: 0 | BU61: 0 | BV61: 0 | BW61: 0 | BX61: =SUM(BX62:BX64) -> 0 | BY61: 0 | BZ61: 0 | CA61: 0 | CB61: 0 | CC61: 0 | CD61: 0 | CE61: 0 | CF61: 0 | CG61: =SUM(CG62:CG64) -> 0
A62: 61 | H62: a | I62: צמוד מדד | J62: 0 | K62: 0 | L62: 0 | M62: 0 | N62: 0 | P62: 0 | S62: 0 | T62: 0 | X62: 0 | Y62: 0 | Z62: 0 | AC62: 0 | AD62: 0 | AE62: 0 | AF62: 0 | AG62: 0 | AH62: 0 | AI62: 0 | AJ62: 0 | AK62: 0 | AL62: 0 | CG62: 0
A63: 62 | H63: b | I63: לא צמוד | J63: 0 | K63: 0 | L63: 0 | M63: 0 | N63: 0 | P63: 0 | S63: 0 | T63: 0 | X63: 0 | Y63: 0 | Z63: 0 | AC63: 0 | AD63: 0 | AE63: 0 | AF63: 0 | AG63: 0 | AH63: 0 | AI63: 0 | AJ63: 0 | AK63: 0 | AL63: 0 | CG63: 0
A64: 63 | H64: c | I64: צמוד מט"ח | J64: 0 | K64: 0 | L64: 0 | M64: 0 | N64: 0 | P64: 0 | S64: 0 | T64: 0 | X64: 0 | Y64: 0 | Z64: 0 | AC64: 0 | AD64: 0 | AE64: 0 | AF64: 0 | AG64: 0 | AH64: 0 | AI64: 0 | AJ64: 0 | AK64: 0 | AL64: 0 | CG64: 0
A65: 64 | G65: (ב) | H65: =$H$52 -> דרוג BBB- ועד A+ | J65: 0 | K65: =SUM(K66:K68) -> 0 | L65: =SUM(L66:L68) -> 0 | M65: 0 | N65: 0 | O65: 0 | P65: 0 | Q65: 0 | R65: 0 | S65: 0 | T65: 0 | U65: 0 | V65: 0 | W65: 0 | X65: 0 | Y65: 0 | Z65: 0 | AA65: 0 | AB65: 0 | AC65: 0 | AD65: 0 | AE65: 0 | AF65: 0 | AG65: 0 | AH65: 0 | AI65: 0 | AJ65: 0 | AK65: 0 | AL65: 0 | AM65: 0 | AN65: 0 | AO65: 0 | AP65: 0 | AQ65: 0 | AR65: 0 | AS65: 0 | AT65: 0 | AU65: 0 | AV65: 0 | AW65: 0 | AX65: 0 | AY65: 0 | AZ65: 0 | BA65: 0 | BB65: 0 | BC65: 0 | BD65: 0 | BE65: 0 | BF65: 0 | BG65: 0 | BH65: 0 | BI65: 0 | BJ65: 0 | BK65: 0 | BL65: 0 | BM65: 0 | BN65: 0 | BO65: 0 | BP65: 0 | BQ65: 0 | BR65: 0 | BS65: 0 | BT65: 0 | BU65: 0 | BV65: 0 | BW65: 0 | BX65: =SUM(BX66:BX68) -> 0 | BY65: 0 | BZ65: 0 | CA65: 0 | CB65: 0 | CC65: 0 | CD65: 0 | CE65: 0 | CF65: 0 | CG65: =SUM(CG66:CG68) -> 0
A66: 65 | H66: a | I66: צמוד מדד | J66: 0 | K66: 0 | L66: 0 | M66: 0 | N66: 0 | P66: 0 | S66: 0 | T66: 0 | X66: 0 | Y66: 0 | Z66: 0 | AC66: 0 | AD66: 0 | AE66: 0 | AF66: 0 | AG66: 0 | AH66: 0 | AI66: 0 | AJ66: 0 | AK66: 0 | AL66: 0 | CG66: 0
A67: 66 | H67: b | I67: לא צמוד | J67: 0 | K67: 0 | L67: 0 | M67: 0 | N67: 0 | P67: 0 | S67: 0 | T67: 0 | X67: 0 | Y67: 0 | Z67: 0 | AC67: 0 | AD67: 0 | AE67: 0 | AF67: 0 | AG67: 0 | AH67: 0 | AI67: 0 | AJ67: 0 | AK67: 0 | AL67: 0 | CG67: 0
A68: 67 | H68: c | I68: צמוד מט"ח | J68: 0 | K68: 0 | L68: 0 | M68: 0 | N68: 0 | P68: 0 | S68: 0 | T68: 0 | X68: 0 | Y68: 0 | Z68: 0 | AC68: 0 | AD68: 0 | AE68: 0 | AF68: 0 | AG68: 0 | AH68: 0 | AI68: 0 | AJ68: 0 | AK68: 0 | AL68: 0 | CG68: 0
A69: 68 | G69: (ג) | H69: בדרוג נמוך מ- BBB- או לא מדורג עם בטוחה מספקת | J69: 0 | K69: =SUM(K70:K72) -> 0 | L69: =SUM(L70:L72) -> 0 | M69: 0 | N69: 0 | O69: 0 | P69: 0 | Q69: 0 | R69: 0 | S69: 0 | T69: 0 | U69: 0 | V69: 0 | W69: 0 | X69: 0 | Y69: 0 | Z69: 0 | AA69: 0 | AB69: 0 | AC69: 0 | AD69: 0 | AE69: 0 | AF69: 0 | AG69: 0 | AH69: 0 | AI69: 0 | AJ69: 0 | AK69: 0 | AL69: 0 | AM69: 0 | AN69: 0 | AO69: 0 | AP69: 0 | AQ69: 0 | AR69: 0 | AS69: 0 | AT69: 0 | AU69: 0 | AV69: 0 | AW69: 0 | AX69: 0 | AY69: 0 | AZ69: 0 | BA69: 0 | BB69: 0 | BC69: 0 | BD69: 0 | BE69: 0 | BF69: 0 | BG69: 0 | BH69: 0 | BI69: 0 | BJ69: 0 | BK69: 0 | BL69: 0 | BM69: 0 | BN69: 0 | BO69: 0 | BP69: 0 | BQ69: 0 | BR69: 0 | BS69: 0 | BT69: 0 | BU69: 0 | BV69: 0 | BW69: 0 | BX69: =SUM(BX70:BX72) -> 0 | BY69: 0 | BZ69: 0 | CA69: 0 | CB69: 0 | CC69: 0 | CD69: 0 | CE69: 0 | CF69: 0 | CG69: =SUM(CG70:CG72) -> 0
A70: 69 | H70: a | I70: צמוד מדד | J70: 0 | K70: 0 | L70: 0 | M70: 0 | N70: 0 | P70: 0 | S70: 0 | T70: 0 | X70: 0 | Y70: 0 | Z70: 0 | AC70: 0 | AD70: 0 | AE70: 0 | AF70: 0 | AG70: 0 | AH70: 0 | AI70: 0 | AJ70: 0 | AK70: 0 | AL70: 0 | CG70: 0
A71: 70 | H71: b | I71: לא צמוד | J71: 0 | K71: 0 | L71: 0 | M71: 0 | N71: 0 | P71: 0 | S71: 0 | T71: 0 | X71: 0 | Y71: 0 | Z71: 0 | AC71: 0 | AD71: 0 | AE71: 0 | AF71: 0 | AG71: 0 | AH71: 0 | AI71: 0 | AJ71: 0 | AK71: 0 | AL71: 0 | CG71: 0
A72: 71 | H72: c | I72: צמוד מט"ח | J72: 0 | K72: 0 | L72: 0 | M72: 0 | N72: 0 | P72: 0 | S72: 0 | T72: 0 | X72: 0 | Y72: 0 | Z72: 0 | AC72: 0 | AD72: 0 | AE72: 0 | AF72: 0 | AG72: 0 | AH72: 0 | AI72: 0 | AJ72: 0 | AK72: 0 | AL72: 0 | CG72: 0
A73: 72 | G73: (ד) | H73: =$H$56 -> דרוג נמוך מ- BBB- או לא מדורג | J73: 0 | K73: =SUM(K74:K76) -> 0 | L73: =SUM(L74:L76) -> 0 | M73: 0 | N73: 0 | O73: 0 | P73: 0 | Q73: 0 | R73: 0 | S73: 0 | T73: 0 | U73: 0 | V73: 0 | W73: 0 | X73: 0 | Y73: 0 | Z73: 0 | AA73: 0 | AB73: 0 | AC73: 0 | AD73: 0 | AE73: 0 | AF73: 0 | AG73: 0 | AH73: 0 | AI73: 0 | AJ73: 0 | AK73: 0 | AL73: 0 | AM73: 0 | AN73: 0 | AO73: 0 | AP73: 0 | AQ73: 0 | AR73: 0 | AS73: 0 | AT73: 0 | AU73: 0 | AV73: 0 | AW73: 0 | AX73: 0 | AY73: 0 | AZ73: 0 | BA73: 0 | BB73: 0 | BC73: 0 | BD73: 0 | BE73: 0 | BF73: 0 | BG73: 0 | BH73: 0 | BI73: 0 | BJ73: 0 | BK73: 0 | BL73: 0 | BM73: 0 | BN73: 0 | BO73: 0 | BP73: 0 | BQ73: 0 | BR73: 0 | BS73: 0 | BT73: 0 | BU73: 0 | BV73: 0 | BW73: 0 | BX73: =SUM(BX74:BX76) -> 0 | BY73: 0 | BZ73: 0 | CA73: 0 | CB73: 0 | CC73: 0 | CD73: 0 | CE73: 0 | CF73: 0 | CG73: =SUM(CG74:CG76) -> 0
A74: 73 | H74: a | I74: צמוד מדד | J74: 0 | K74: 0 | L74: 0 | M74: 0 | N74: 0 | P74: 0 | S74: 0 | T74: 0 | X74: 0 | Y74: 0 | Z74: 0 | AC74: 0 | AD74: 0 | AE74: 0 | AF74: 0 | AG74: 0 | AH74: 0 | AI74: 0 | AJ74: 0 | AK74: 0 | AL74: 0 | CG74: 0
A75: 74 | H75: b | I75: לא צמוד | J75: 0 | K75: 0 | L75: 0 | M75: 0 | N75: 0 | P75: 0 | S75: 0 | T75: 0 | X75: 0 | Y75: 0 | Z75: 0 | AC75: 0 | AD75: 0 | AE75: 0 | AF75: 0 | AG75: 0 | AH75: 0 | AI75: 0 | AJ75: 0 | AK75: 0 | AL75: 0 | CG75: 0
A76: =A75+1 -> 75 | H76: c | I76: צמוד מט"ח | J76: =SUM(K76:CG76) -> 0 | K76: 0 | L76: 0 | M76: 0 | N76: 0 | P76: 0 | S76: 0 | T76: 0 | X76: 0 | Y76: 0 | Z76: 0 | AC76: 0 | AD76: 0 | AE76: 0 | AF76: 0 | AG76: 0 | AH76: 0 | AI76: 0 | AJ76: 0 | AK76: 0 | AL76: 0 | CG76: 0
A77: 76 | E77: ב) | F77: בחו"ל | J77: 0 | K77: =SUM(K78,K82,K87,K91) -> 0 | L77: =SUM(L78,L82,L87,L91) -> 0 | M77: 0 | N77: 0 | O77: 0 | P77: 0 | Q77: 0 | R77: 0 | S77: 0 | T77: 0 | U77: 0 | V77: 0 | W77: 0 | X77: 0 | Y77: 0 | Z77: 0 | AA77: 0 | AB77: 0 | AC77: 0 | AD77: 0 | AE77: 0 | AF77: 0 | AG77: 0 | AH77: 0 | AI77: 0 | AJ77: 0 | AK77: 0 | AL77: 0 | AM77: 0 | AN77: 0 | AO77: 0 | AP77: 0 | AQ77: 0 | AR77: 0 | AS77: 0 | AT77: 0 | AU77: 0 | AV77: 0 | AW77: 0 | AX77: 0 | AY77: 0 | AZ77: 0 | BA77: 0 | BB77: 0 | BC77: 0 | BD77: 0 | BE77: 0 | BF77: 0 | BG77: 0 | BH77: 0 | BI77: 0 | BJ77: 0 | BK77: 0 | BL77: 0 | BM77: 0 | BN77: 0 | BO77: 0 | BP77: 0 | BQ77: 0 | BR77: 0 | BS77: 0 | BT77: 0 | BU77: 0 | BV77: 0 | BW77: 0 | BX77: =SUM(BX78,BX82,BX87,BX91) -> 0 | BY77: 0 | BZ77: 0 | CA77: 0 | CB77: 0 | CC77: 0 | CD77: 0 | CE77: 0 | CF77: 0 | CG77: =SUM(CG78,CG82,CG87,CG91) -> 0
A78: 77 | F78: (1) | G78: סחיר - חברות ישראליות | J78: 0 | K78: =SUM(K79:K81) -> 0 | L78: =SUM(L79:L81) -> 0 | M78: 0 | N78: 0 | O78: 0 | P78: 0 | Q78: 0 | R78: 0 | S78: 0 | T78: 0 | U78: 0 | V78: 0 | W78: 0 | X78: 0 | Y78: 0 | Z78: 0 | AA78: 0 | AB78: 0 | AC78: 0 | AD78: 0 | AE78: 0 | AF78: 0 | AG78: 0 | AH78: 0 | AI78: 0 | AJ78: 0 | AK78: 0 | AL78: 0 | AM78: 0 | AN78: 0 | AO78: 0 | AP78: 0 | AQ78: 0 | AR78: 0 | AS78: 0 | AT78: 0 | AU78: 0 | AV78: 0 | AW78: 0 | AX78: 0 | AY78: 0 | AZ78: 0 | BA78: 0 | BB78: 0 | BC78: 0 | BD78: 0 | BE78: 0 | BF78: 0 | BG78: 0 | BH78: 0 | BI78: 0 | BJ78: 0 | BK78: 0 | BL78: 0 | BM78: 0 | BN78: 0 | BO78: 0 | BP78: 0 | BQ78: 0 | BR78: 0 | BS78: 0 | BT78: 0 | BU78: 0 | BV78: 0 | BW78: 0 | BX78: =SUM(BX79:BX81) -> 0 | BY78: 0 | BZ78: 0 | CA78: 0 | CB78: 0 | CC78: 0 | CD78: 0 | CE78: 0 | CF78: 0 | CG78: =SUM(CG79:CG81) -> 0
A79: 78 | G79: (א) | H79: דרוג A- ומעלה | J79: 0 | K79: 0 | L79: 0 | M79: 0 | N79: 0 | P79: 0 | S79: 0 | T79: 0 | X79: 0 | Y79: 0 | Z79: 0 | AC79: 0 | AD79: 0 | AE79: 0 | AF79: 0 | AG79: 0 | AH79: 0 | AI79: 0 | AJ79: 0 | AK79: 0 | AL79: 0 | CG79: 0
A80: 79 | G80: (ב) | H80: דרוג BBB- ועד BBB+ | J80: 0 | K80: 0 | L80: 0 | M80: 0 | N80: 0 | P80: 0 | S80: 0 | T80: 0 | X80: 0 | Y80: 0 | Z80: 0 | AC80: 0 | AD80: 0 | AE80: 0 | AF80: 0 | AG80: 0 | AH80: 0 | AI80: 0 | AJ80: 0 | AK80: 0 | AL80: 0 | CG80: 0
A81: 80 | G81: (ג) | H81: דרוג נמוך מ- BBB- או לא מדורג | J81: 0 | K81: 0 | L81: 0 | M81: 0 | N81: 0 | P81: 0 | S81: 0 | T81: 0 | X81: 0 | Y81: 0 | Z81: 0 | AC81: 0 | AD81: 0 | AE81: 0 | AF81: 0 | AG81: 0 | AH81: 0 | AI81: 0 | AJ81: 0 | AK81: 0 | AL81: 0 | CG81: 0
A82: 81 | F82: (2) | G82: לא סחיר - חברות ישראליות | J82: 0 | K82: =SUM(K83:K86) -> 0 | L82: =SUM(L83:L86) -> 0 | M82: 0 | N82: 0 | O82: 0 | P82: 0 | Q82: 0 | R82: 0 | S82: 0 | T82: 0 | U82: 0 | V82: 0 | W82: 0 | X82: 0 | Y82: 0 | Z82: 0 | AA82: 0 | AB82: 0 | AC82: 0 | AD82: 0 | AE82: 0 | AF82: 0 | AG82: 0 | AH82: 0 | AI82: 0 | AJ82: 0 | AK82: 0 | AL82: 0 | AM82: 0 | AN82: 0 | AO82: 0 | AP82: 0 | AQ82: 0 | AR82: 0 | AS82: 0 | AT82: 0 | AU82: 0 | AV82: 0 | AW82: 0 | AX82: 0 | AY82: 0 | AZ82: 0 | BA82: 0 | BB82: 0 | BC82: 0 | BD82: 0 | BE82: 0 | BF82: 0 | BG82: 0 | BH82: 0 | BI82: 0 | BJ82: 0 | BK82: 0 | BL82: 0 | BM82: 0 | BN82: 0 | BO82: 0 | BP82: 0 | BQ82: 0 | BR82: 0 | BS82: 0 | BT82: 0 | BU82: 0 | BV82: 0 | BW82: 0 | BX82: =SUM(BX83:BX86) -> 0 | BY82: 0 | BZ82: 0 | CA82: 0 | CB82: 0 | CC82: 0 | CD82: 0 | CE82: 0 | CF82: 0 | CG82: =SUM(CG83:CG86) -> 0
A83: 82 | G83: (א) | H83: =$H$79 -> דרוג A- ומעלה | J83: 0 | K83: 0 | L83: 0 | M83: 0 | N83: 0 | P83: 0 | S83: 0 | T83: 0 | X83: 0 | Y83: 0 | Z83: 0 | AC83: 0 | AD83: 0 | AE83: 0 | AF83: 0 | AG83: 0 | AH83: 0 | AI83: 0 | AJ83: 0 | AK83: 0 | AL83: 0 | CG83: 0
A84: 83 | G84: (ב) | H84: =$H$80 -> דרוג BBB- ועד BBB+ | J84: 0 | K84: 0 | L84: 0 | M84: 0 | N84: 0 | P84: 0 | S84: 0 | T84: 0 | X84: 0 | Y84: 0 | Z84: 0 | AC84: 0 | AD84: 0 | AE84: 0 | AF84: 0 | AG84: 0 | AH84: 0 | AI84: 0 | AJ84: 0 | AK84: 0 | AL84: 0 | CG84: 0
A85: 84 | G85: (ג) | H85: =$H$69 -> בדרוג נמוך מ- BBB- או לא מדורג עם בטוחה מספקת | J85: 0 | K85: 0 | L85: 0 | M85: 0 | N85: 0 | P85: 0 | S85: 0 | T85: 0 | X85: 0 | Y85: 0 | Z85: 0 | AC85: 0 | AD85: 0 | AE85: 0 | AF85: 0 | AG85: 0 | AH85: 0 | AI85: 0 | AJ85: 0 | AK85: 0 | AL85: 0 | CG85: 0
A86: 85 | G86: (ד) | H86: =H81 -> דרוג נמוך מ- BBB- או לא מדורג | J86: 0 | K86: 0 | L86: 0 | M86: 0 | N86: 0 | P86: 0 | S86: 0 | T86: 0 | X86: 0 | Y86: 0 | Z86: 0 | AC86: 0 | AD86: 0 | AE86: 0 | AF86: 0 | AG86: 0 | AH86: 0 | AI86: 0 | AJ86: 0 | AK86: 0 | AL86: 0 | CG86: 0
A87: 86 | F87: (3) | G87: סחיר - חברות זרות | J87: 0 | K87: =SUM(K88:K90) -> 0 | L87: =SUM(L88:L90) -> 0 | M87: 0 | N87: 0 | O87: 0 | P87: 0 | Q87: 0 | R87: 0 | S87: 0 | T87: 0 | U87: 0 | V87: 0 | W87: 0 | X87: 0 | Y87: 0 | Z87: 0 | AA87: 0 | AB87: 0 | AC87: 0 | AD87: 0 | AE87: 0 | AF87: 0 | AG87: 0 | AH87: 0 | AI87: 0 | AJ87: 0 | AK87: 0 | AL87: 0 | AM87: 0 | AN87: 0 | AO87: 0 | AP87: 0 | AQ87: 0 | AR87: 0 | AS87: 0 | AT87: 0 | AU87: 0 | AV87: 0 | AW87: 0 | AX87: 0 | AY87: 0 | AZ87: 0 | BA87: 0 | BB87: 0 | BC87: 0 | BD87: 0 | BE87: 0 | BF87: 0 | BG87: 0 | BH87: 0 | BI87: 0 | BJ87: 0 | BK87: 0 | BL87: 0 | BM87: 0 | BN87: 0 | BO87: 0 | BP87: 0 | BQ87: 0 | BR87: 0 | BS87: 0 | BT87: 0 | BU87: 0 | BV87: 0 | BW87: 0 | BX87: =SUM(BX88:BX90) -> 0 | BY87: 0 | BZ87: 0 | CA87: 0 | CB87: 0 | CC87: 0 | CD87: 0 | CE87: 0 | CF87: 0 | CG87: =SUM(CG88:CG90) -> 0
A88: 87 | G88: (א) | H88: =$H$79 -> דרוג A- ומעלה | J88: 0 | K88: 0 | L88: 0 | M88: 0 | N88: 0 | P88: 0 | S88: 0 | T88: 0 | X88: 0 | Y88: 0 | Z88: 0 | AC88: 0 | AD88: 0 | AE88: 0 | AF88: 0 | AG88: 0 | AH88: 0 | AI88: 0 | AJ88: 0 | AK88: 0 | AL88: 0 | CG88: 0
A89: 88 | G89: (ב) | H89: =$H$80 -> דרוג BBB- ועד BBB+ | J89: 0 | K89: 0 | L89: 0 | M89: 0 | N89: 0 | P89: 0 | S89: 0 | T89: 0 | X89: 0 | Y89: 0 | Z89: 0 | AC89: 0 | AD89: 0 | AE89: 0 | AF89: 0 | AG89: 0 | AH89: 0 | AI89: 0 | AJ89: 0 | AK89: 0 | AL89: 0 | CG89: 0
A90: 89 | G90: (ג) | H90: =$H$81 -> דרוג נמוך מ- BBB- או לא מדורג | J90: 0 | K90: 0 | L90: 0 | M90: 0 | N90: 0 | P90: 0 | S90: 0 | T90: 0 | X90: 0 | Y90: 0 | Z90: 0 | AC90: 0 | AD90: 0 | AE90: 0 | AF90: 0 | AG90: 0 | AH90: 0 | AI90: 0 | AJ90: 0 | AK90: 0 | AL90: 0 | CG90: 0
A91: 90 | F91: (4) | G91: לא סחיר - חברות זרות | J91: 0 | K91: =SUM(K92:K95) -> 0 | L91: =SUM(L92:L95) -> 0 | M91: 0 | N91: 0 | O91: 0 | P91: 0 | Q91: 0 | R91: 0 | S91: 0 | T91: 0 | U91: 0 | V91: 0 | W91: 0 | X91: 0 | Y91: 0 | Z91: 0 | AA91: 0 | AB91: 0 | AC91: 0 | AD91: 0 | AE91: 0 | AF91: 0 | AG91: 0 | AH91: 0 | AI91: 0 | AJ91: 0 | AK91: 0 | AL91: 0 | AM91: 0 | AN91: 0 | AO91: 0 | AP91: 0 | AQ91: 0 | AR91: 0 | AS91: 0 | AT91: 0 | AU91: 0 | AV91: 0 | AW91: 0 | AX91: 0 | AY91: 0 | AZ91: 0 | BA91: 0 | BB91: 0 | BC91: 0 | BD91: 0 | BE91: 0 | BF91: 0 | BG91: 0 | BH91: 0 | BI91: 0 | BJ91: 0 | BK91: 0 | BL91: 0 | BM91: 0 | BN91: 0 | BO91: 0 | BP91: 0 | BQ91: 0 | BR91: 0 | BS91: 0 | BT91: 0 | BU91: 0 | BV91: 0 | BW91: 0 | BX91: =SUM(BX92:BX95) -> 0 | BY91: 0 | BZ91: 0 | CA91: 0 | CB91: 0 | CC91: 0 | CD91: 0 | CE91: 0 | CF91: 0 | CG91: =SUM(CG92:CG95) -> 0
A92: 91 | G92: (א) | H92: =$H$79 -> דרוג A- ומעלה | J92: 0 | K92: 0 | L92: 0 | M92: 0 | N92: 0 | P92: 0 | S92: 0 | T92: 0 | X92: 0 | Y92: 0 | Z92: 0 | AC92: 0 | AD92: 0 | AE92: 0 | AF92: 0 | AG92: 0 | AH92: 0 | AI92: 0 | AJ92: 0 | AK92: 0 | AL92: 0 | CG92: 0
A93: 92 | G93: (ב) | H93: =$H$80 -> דרוג BBB- ועד BBB+ | J93: 0 | K93: 0 | L93: 0 | M93: 0 | N93: 0 | P93: 0 | S93: 0 | T93: 0 | X93: 0 | Y93: 0 | Z93: 0 | AC93: 0 | AD93: 0 | AE93: 0 | AF93: 0 | AG93: 0 | AH93: 0 | AI93: 0 | AJ93: 0 | AK93: 0 | AL93: 0 | CG93: 0
A94: 93 | G94: (ג) | H94: =$H$69 -> בדרוג נמוך מ- BBB- או לא מדורג עם בטוחה מספקת | J94: 0 | K94: 0 | L94: 0 | M94: 0 | N94: 0 | P94: 0 | S94: 0 | T94: 0 | X94: 0 | Y94: 0 | Z94: 0 | AC94: 0 | AD94: 0 | AE94: 0 | AF94: 0 | AG94: 0 | AH94: 0 | AI94: 0 | AJ94: 0 | AK94: 0 | AL94: 0 | CG94: 0
A95: 94 | G95: (ד) | H95: =H90 -> דרוג נמוך מ- BBB- או לא מדורג | J95: 0 | K95: 0 | L95: 0 | M95: 0 | N95: 0 | P95: 0 | S95: 0 | T95: 0 | X95: 0 | Y95: 0 | Z95: 0 | AC95: 0 | AD95: 0 | AE95: 0 | AF95: 0 | AG95: 0 | AH95: 0 | AI95: 0 | AJ95: 0 | AK95: 0 | AL95: 0 | CG95: 0
A96: 95 | AC96: 0 | AD96: 0 | AE96: 0 | AF96: 0 | AG96: 0 | AH96: 0 | AI96: 0 | AJ96: 0 | AK96: 0 | AL96: 0 | CG96: 0
A97: 96 | D97: (3 | E97: אג"ח קונצרני: | J97: 8665773.4 | K97: =SUM(K98,K136) -> 192.9724576 | L97: =SUM(L98,L136) -> 78903.19248 | M97: 2518117.878 | N97: 81608.10733 | O97: 2119375.42 | P97: 250997.4658 | Q97: 1260384.78 | R97: 317575.43 | S97: 3943.61514 | T97: 1484.110863 | U97: 61475 | V97: 0 | W97: 74853.49 | X97: 115.4691366 | Y97: 14138.87422 | Z97: 162.8248605 | AA97: 7767.14 | AB97: 0 | AC97: 234885.0012 | AD97: 97032.08989 | AE97: 218927.0116 | AF97: 340659.5136 | AG97: 194594.9839 | AH97: 5302.838795 | AI97: 14979.15011 | AJ97: 40541.79839 | AK97: 172865.4164 | AL97: 82003.4261 | AM97: 0 | AN97: 0 | AO97: 0 | AP97: 0 | AQ97: 0 | AR97: 0 | AS97: 0 | AT97: 0 | AU97: 0 | AV97: 0 | AW97: 0 | AX97: 0 | AY97: 0 | AZ97: 0 | BA97: 0 | BB97: 0 | BC97: 0 | BD97: 0 | BE97: 0 | BF97: 0 | BG97: 0 | BH97: 0 | BI97: 0 | BJ97: 0 | BK97: 0 | BL97: 0 | BM97: 0 | BN97: 0 | BO97: 0 | BP97: 0 | BQ97: 0 | BR97: 0 | BS97: 0 | BT97: 0 | BU97: 0 | BV97: 0 | BW97: 0 | BX97: =SUM(BX98,BX136) -> 0 | BY97: 0 | BZ97: 0 | CA97: 0 | CB97: 0 | CC97: 0 | CD97: 0 | CE97: 0 | CF97: 0 | CG97: =SUM(CG98,CG136) -> 472886.4
A98: 97 | E98: א) | F98: בישראל | J98: 6082511.83 | K98: =SUM(K99,K115) -> 138.3391757 | L98: =SUM(L99,L115) -> 56564.56236 | M98: 1805202.442 | N98: 58503.67686 | O98: 1418391.56 | P98: 200397.9256 | Q98: 904500.2 | R98: 266683.33 | S98: 3902.243309 | T98: 1484.110863 | U98: 806.24 | V98: 0 | W98: 55159.17 | X98: 115.4691366 | Y98: 11288.56443 | Z98: 161.1166911 | AA98: 92.54 | AB98: 0 | AC98: 144673.5243 | AD98: 63748.43309 | AE98: 164452.9339 | AF98: 257710.3022 | AG98: 135891.5168 | AH98: 3266.195685 | AI98: 9841.046912 | AJ98: 30454.06614 | AK98: 130773.3878 | AL98: 57265.45324 | AM98: 0 | AN98: 0 | AO98: 0 | AP98: 0 | AQ98: 0 | AR98: 0 | AS98: 0 | AT98: 0 | AU98: 0 | AV98: 0 | AW98: 0 | AX98: 0 | AY98: 0 | AZ98: 0 | BA98: 0 | BB98: 0 | BC98: 0 | BD98: 0 | BE98: 0 | BF98: 0 | BG98: 0 | BH98: 0 | BI98: 0 | BJ98: 0 | BK98: 0 | BL98: 0 | BM98: 0 | BN98: 0 | BO98: 0 | BP98: 0 | BQ98: 0 | BR98: 0 | BS98: 0 | BT98: 0 | BU98: 0 | BV98: 0 | BW98: 0 | BX98: =SUM(BX99,BX115) -> 0 | BY98: 0 | BZ98: 0 | CA98: 0 | CB98: 0 | CC98: 0 | CD98: 0 | CE98: 0 | CF98: 0 | CG98: =SUM(CG99,CG115) -> 301043.48
A99: 98 | F99: (1) | G99: סחיר | J99: 5285580.34 | K99: =SUM(K100,K105,K110) -> 114.0968416 | L99: =SUM(L100,L105,L110) -> 46652.27966 | M99: 1488861.677 | N99: 48251.58686 | O99: 1219231.15 | P99: 179865.2277 | Q99: 835235.4 | R99: 245820.57 | S99: 3902.243309 | T99: 1484.110863 | U99: 310.85 | V99: 0 | W99: 53420.7 | X99: 115.4691366 | Y99: 10131.94227 | Z99: 161.1166911 | AA99: 55.19 | AB99: 0 | AC99: 124560.9326 | AD99: 55321.13215 | AE99: 149659.8142 | AF99: 238017.3968 | AG99: 124492.1531 | AH99: 2812.127392 | AI99: 8540.097855 | AJ99: 27714.6158 | AK99: 120780.3532 | AL99: 52461.69694 | AM99: 0 | AN99: 0 | AO99: 0 | AP99: 0 | AQ99: 0 | AR99: 0 | AS99: 0 | AT99: 0 | AU99: 0 | AV99: 0 | AW99: 0 | AX99: 0 | AY99: 0 | AZ99: 0 | BA99: 0 | BB99: 0 | BC99: 0 | BD99: 0 | BE99: 0 | BF99: 0 | BG99: 0 | BH99: 0 | BI99: 0 | BJ99: 0 | BK99: 0 | BL99: 0 | BM99: 0 | BN99: 0 | BO99: 0 | BP99: 0 | BQ99: 0 | BR99: 0 | BS99: 0 | BT99: 0 | BU99: 0 | BV99: 0 | BW99: 0 | BX99: =SUM(BX100,BX105,BX110) -> 0 | BY99: 0 | BZ99: 0 | CA99: 0 | CB99: 0 | CC99: 0 | CD99: 0 | CE99: 0 | CF99: 0 | CG99: =SUM(CG100,CG105,CG110) -> 247606.41
A100: 99 | G100: (א) | H100: =$H$48 -> דרוג AA- ומעלה | J100: 3831670.35 | K100: =SUM(K101:K104) -> 82.46802411 | L100: =SUM(L101:L104) -> 33719.78811 | M100: 1076133.913 | N100: 34875.75091 | O100: 899104.24 | P100: 130066.9896 | Q100: 621844.74 | R100: 173385.5 | S100: 867.7904736 | T100: 830.7728955 | U100: 310.85 | V100: 0 | W100: 33572.47 | X100: 64.63710452 | Y100: 7326.770415 | Z100: 35.8295264 | AA100: 55.19 | AB100: 0 | AC100: 88700.86104 | AD100: 39739.85335 | AE100: 99408.00038 | AF100: 168489.8104 | AG100: 88408.35114 | AH100: 2002.538964 | AI100: 6134.766647 | AJ100: 18408.77962 | AK100: 85499.03956 | AL100: 37255.77886 | AM100: 0 | AN100: 0 | AO100: 0 | AP100: 0 | AQ100: 0 | AR100: 0 | AS100: 0 | AT100: 0 | AU100: 0 | AV100: 0 | AW100: 0 | AX100: 0 | AY100: 0 | AZ100: 0 | BA100: 0 | BB100: 0 | BC100: 0 | BD100: 0 | BE100: 0 | BF100: 0 | BG100: 0 | BH100: 0 | BI100: 0 | BJ100: 0 | BK100: 0 | BL100: 0 | BM100: 0 | BN100: 0 | BO100: 0 | BP100: 0 | BQ100: 0 | BR100: 0 | BS100: 0 | BT100: 0 | BU100: 0 | BV100: 0 | BW100: 0 | BX100: =SUM(BX101:BX104) -> 0 | BY100: 0 | BZ100: 0 | CA100: 0 | CB100: 0 | CC100: 0 | CD100: 0 | CE100: 0 | CF100: 0 | CG100: =SUM(CG101:CG104) -> 185344.87
A101: 100 | H101: a | I101: צמוד מדד | J101: 3318903.57 | K101: 71.31224157 | L101: 29158.37624 | M101: 930560.9342 | N101: 30157.96729 | O101: 830271.2 | P101: 105557.1283 | Q101: 551099.18 | R101: 136482.19 | S101: 303.8255817 | T101: 0 | W101: 23653.37 | X101: 0 | Y101: 5946.111672 | Z101: 12.5444183 | AC101: 68240.32464 | AD101: 31192.06278 | AE101: 79993.8433 | AF101: 133046.6153 | AG101: 72203.09687 | AH101: 1540.615361 | AI101: 4815.217225 | AJ101: 14813.5867 | AK101: 67513.62469 | AL101: 30426.79313 | CG101: 171843.65
A102: 101 | H102: b | I102: לא צמוד | J102: 454651.55 | K102: 9.912637568 | L102: 4053.11079 | M102: 129351.0493 | N102: 4192.057254 | O102: 54359.42 | P102: 22669.73684 | Q102: 61138.57 | R102: 34524.08 | S102: 558.644559 | T102: 830.7728955 | W102: 9506.78 | X102: 64.63710452 | Y102: 1277.003163 | Z102: 23.06544101 | AC102: 19270.95282 | AD102: 8004.040928 | AE102: 18019.65641 | AF102: 33123.87751 | AG102: 14946.55658 | AH102: 435.0671847 | AI102: 1235.609072 | AJ102: 3336.95359 | AK102: 16808.49249 | AL102: 6298.563422 | CG102: 10612.94
A103: 102 | H103: c | I103: צמוד מט"ח | J103: 58115.23 | K103: 1.243144975 | L103: 508.301073 | M103: 16221.92942 | N103: 525.7263644 | O103: 14473.62 | P103: 1840.124421 | Q103: 9606.99 | R103: 2379.23 | S103: 5.32033291 | T103: 0 | U103: 310.85 | W103: 412.32 | X103: 0 | Y103: 103.6555794 | Z103: 0.2196670905 | AA103: 55.19 | AC103: 1189.583581 | AD103: 543.7496496 | AE103: 1394.500669 | AF103: 2319.317619 | AG103: 1258.697682 | AH103: 26.85641881 | AI103: 83.94035039 | AJ103: 258.2393309 | AK103: 1176.922381 | AL103: 530.4223177 | CG103: 2888.28
A104: 103 | H104: d | I104: אחר | J104: 0 | K104: 0 | L104: 0 | M104: 0 | N104: 0 | P104: 0 | S104: 0 | T104: 0 | X104: 0 | Y104: 0 | Z104: 0 | AC104: 0 | AD104: 0 | AE104: 0 | AF104: 0 | AG104: 0 | AH104: 0 | AI104: 0 | AJ104: 0 | AK104: 0 | AL104: 0 | CG104: 0
A105: 104 | G105: (ב) | H105: =$H$52 -> דרוג BBB- ועד A+ | J105: 1343921.33 | K105: =SUM(K106:K109) -> 29.18516587 | L105: =SUM(L106:L109) -> 11933.32349 | M105: 380840.2964 | N105: 12342.41497 | O105: 291884.88 | P105: 47181.97424 | Q105: 200549.68 | R105: 67776.36 | S105: 2964.011243 | T105: 653.3379679 | U105: 0 | V105: 0 | W105: 17496.2 | X105: 50.83203213 | Y105: 2657.795757 | Z105: 122.3787566 | AA105: 0 | AB105: 0 | AC105: 34286.8687 | AD105: 14902.84133 | AE105: 44122.63095 | AF105: 65220.40632 | AG105: 33465.68232 | AH105: 774.071297 | AI105: 2300.598674 | AJ105: 8170.809054 | AK105: 33095.66368 | AL105: 14102.62768 | AM105: 0 | AN105: 0 | AO105: 0 | AP105: 0 | AQ105: 0 | AR105: 0 | AS105: 0 | AT105: 0 | AU105: 0 | AV105: 0 | AW105: 0 | AX105: 0 | AY105: 0 | AZ105: 0 | BA105: 0 | BB105: 0 | BC105: 0 | BD105: 0 | BE105: 0 | BF105: 0 | BG105: 0 | BH105: 0 | BI105: 0 | BJ105: 0 | BK105: 0 | BL105: 0 | BM105: 0 | BN105: 0 | BO105: 0 | BP105: 0 | BQ105: 0 | BR105: 0 | BS105: 0 | BT105: 0 | BU105: 0 | BV105: 0 | BW105: 0 | BX105: =SUM(BX106:BX109) -> 0 | BY105: 0 | BZ105: 0 | CA105: 0 | CB105: 0 | CC105: 0 | CD105: 0 | CE105: 0 | CF105: 0 | CG105: =SUM(CG106:CG109) -> 56996.46
A106: 105 | H106: a | I106: צמוד מדד | J106: 716709.08 | K106: 15.45953342 | L106: 6321.143215 | M106: 201733.0762 | N106: 6537.841091 | O106: 179872.63 | P106: 22382.99899 | Q106: 116337.72 | R106: 29626.19 | S106: 83.09899037 | T106: 0 | W106: 5983.17 | X106: 0 | Y106: 1260.851007 | Z106: 3.431009628 | AC106: 14392.63723 | AD106: 6557.524272 | AE106: 19174.10154 | AF106: 28821.44064 | AG106: 15764.20494 | AH106: 324.9327741 | AI106: 1012.305728 | AJ106: 3550.738456 | AK106: 14625.24936 | AL106: 6643.125062 | CG106: 35685.21
A107: 106 | H107: b | I107: לא צמוד | J107: 522144.83 | K107: 11.46363475 | L107: 4687.287453 | M107: 149590.1745 | N107: 4847.974404 | O107: 85677.33 | P107: 21454.74806 | Q107: 66756.46 | R107: 33820.67 | S107: 2871.097487 | T107: 653.3379679 | W107: 10755.91 | X107: 50.83203213 | Y107: 1208.561941 | Z107: 118.5425127 | AC107: 17732.91603 | AD107: 7357.568862 | AE107: 22396.41953 | AF107: 32178.95977 | AG107: 15410.29471 | AH107: 400.343975 | AI107: 1135.811138 | AJ107: 4147.460466 | AK107: 16329.00023 | AL107: 6493.985291 | CG107: 16057.68
A108: 107 | H108: c | I108: צמוד מט"ח | J108: 105067.42 | K108: 2.261997701 | L108: 924.8928177 | M108: 29517.04571 | N108: 956.5994729 | O108: 26334.92 | P108: 3344.227191 | Q108: 17455.5 | R108: 4329.5 | S108: 9.814765765 | T108: 0 | W108: 757.12 | X108: 0 | Y108: 188.3828089 | Z108: 0.4052342355 | AC108: 2161.315452 | AD108: 987.7481925 | AE108: 2552.109868 | AF108: 4220.005917 | AG108: 2291.182672 | AH108: 48.79454784 | AI108: 152.4818075 | AJ108: 472.6101316 | AK108: 2141.414083 | AL108: 965.517328 | CG108: 5253.57
A109: 108 | H109: d | I109: אחר | J109: 0 | K109: 0 | L109: 0 | M109: 0 | N109: 0 | P109: 0 | S109: 0 | T109: 0 | X109: 0 | Y109: 0 | Z109: 0 | AC109: 0 | AD109: 0 | AE109: 0 | AF109: 0 | AG109: 0 | AH109: 0 | AI109: 0 | AJ109: 0 | AK109: 0 | AL109: 0 | CG109: 0
A110: 109 | G110: (ג) | H110: =$H$56 -> דרוג נמוך מ- BBB- או לא מדורג | J110: 109988.66 | K110: =SUM(K111:K114) -> 2.443651659 | L110: =SUM(L111:L114) -> 999.1680661 | M110: 31887.4673 | N110: 1033.420984 | O110: 28242.03 | P110: 2616.263905 | Q110: 12840.98 | R110: 4658.71 | S110: 70.44159186 | T110: 0 | U110: 0 | V110: 0 | W110: 2352.03 | X110: 0 | Y110: 147.3760947 | Z110: 2.908408138 | AA110: 0 | AB110: 0 | AC110: 1573.20287 | AD110: 678.4374661 | AE110: 6129.182875 | AF110: 4307.180004 | AG110: 2618.119602 | AH110: 35.51713037 | AI110: 104.7325339 | AJ110: 1135.027125 | AK110: 2185.649996 | AL110: 1103.290398 | AM110: 0 | AN110: 0 | AO110: 0 | AP110: 0 | AQ110: 0 | AR110: 0 | AS110: 0 | AT110: 0 | AU110: 0 | AV110: 0 | AW110: 0 | AX110: 0 | AY110: 0 | AZ110: 0 | BA110: 0 | BB110: 0 | BC110: 0 | BD110: 0 | BE110: 0 | BF110: 0 | BG110: 0 | BH110: 0 | BI110: 0 | BJ110: 0 | BK110: 0 | BL110: 0 | BM110: 0 | BN110: 0 | BO110: 0 | BP110: 0 | BQ110: 0 | BR110: 0 | BS110: 0 | BT110: 0 | BU110: 0 | BV110: 0 | BW110: 0 | BX110: =SUM(BX111:BX114) -> 0 | BY110: 0 | BZ110: 0 | CA110: 0 | CB110: 0 | CC110: 0 | CD110: 0 | CE110: 0 | CF110: 0 | CG110: =SUM(CG111:CG114) -> 5265.08
A111: 110 | H111: a | I111: צמוד מדד | J111: 63194.54 | K111: 1.393559668 | L111: 569.8031112 | M111: 18184.70655 | N111: 589.3367808 | O111: 16098.45 | P111: 1530.401352 | Q111: 7436.63 | R111: 2708.04 | S111: 23.97991205 | T111: 0 | W111: 1372.38 | X111: 0 | Y111: 86.2086482 | Z111: 0.9900879511 | AC111: 907.1987904 | AD111: 392.0742587 | AE111: 3512.332009 | AF111: 2577.403597 | AG111: 1529.373404 | AH111: 20.4812096 | AI111: 60.52574135 | AJ111: 650.4279905 | AK111: 1307.886403 | AL111: 644.4865965 | CG111: 2990.03
A112: 111 | H112: b | I112: לא צמוד | J112: 46794.12 | K112: 1.050091992 | L112: 429.3649549 | M112: 13702.76075 | N112: 444.0842027 | O112: 12143.58 | P112: 1085.862553 | Q112: 5404.35 | R112: 1950.67 | S112: 46.46167981 | T112: 0 | W112: 979.65 | X112: 0 | Y112: 61.16744653 | Z112: 1.918320187 | AC112: 666.0040792 | AD112: 286.3632074 | AE112: 2616.850866 | AF112: 1729.776407 | AG112: 1088.746198 | AH112: 15.03592077 | AI112: 44.20679257 | AJ112: 484.599134 | AK112: 877.7635932 | AL112: 458.8038017 | CG112: 2275.05
A113: 112 | H113: c | I113: צמוד מט"ח | J113: 0 | K113: 0 | L113: 0 | M113: 0 | N113: 0 | P113: 0 | S113: 0 | T113: 0 | X113: 0 | Y113: 0 | Z113: 0 | AC113: 0 | AD113: 0 | AE113: 0 | AF113: 0 | AG113: 0 | AH113: 0 | AI113: 0 | AJ113: 0 | AK113: 0 | AL113: 0 | CG113: 0
A114: 113 | H114: d | I114: אחר | J114: 0 | K114: 0 | L114: 0 | M114: 0 | N114: 0 | P114: 0 | S114: 0 | T114: 0 | X114: 0 | Y114: 0 | Z114: 0 | AC114: 0 | AD114: 0 | AE114: 0 | AF114: 0 | AG114: 0 | AH114: 0 | AI114: 0 | AJ114: 0 | AK114: 0 | AL114: 0 | CG114: 0
A115: 114 | F115: (2) | G115: לא סחיר | J115: 796931.49 | K115: =SUM(K116,K121,K126,K131) -> 24.24233408 | L115: =SUM(L116,L121,L126,L131) -> 9912.282697 | M115: 316340.765 | N115: 10252.09 | O115: 199160.41 | P115: 20532.69784 | Q115: 69264.8 | R115: 20862.76 | S115: 0 | T115: 0 | U115: 495.39 | V115: 0 | W115: 1738.47 | X115: 0 | Y115: 1156.622165 | Z115: 0 | AA115: 37.35 | AB115: 0 | AC115: 20112.59171 | AD115: 8427.300943 | AE115: 14793.11967 | AF115: 19692.90543 | AG115: 11399.3637 | AH115: 454.0682931 | AI115: 1300.949057 | AJ115: 2739.450334 | AK115: 9993.03457 | AL115: 4803.756296 | AM115: 0 | AN115: 0 | AO115: 0 | AP115: 0 | AQ115: 0 | AR115: 0 | AS115: 0 | AT115: 0 | AU115: 0 | AV115: 0 | AW115: 0 | AX115: 0 | AY115: 0 | AZ115: 0 | BA115: 0 | BB115: 0 | BC115: 0 | BD115: 0 | BE115: 0 | BF115: 0 | BG115: 0 | BH115: 0 | BI115: 0 | BJ115: 0 | BK115: 0 | BL115: 0 | BM115: 0 | BN115: 0 | BO115: 0 | BP115: 0 | BQ115: 0 | BR115: 0 | BS115: 0 | BT115: 0 | BU115: 0 | BV115: 0 | BW115: 0 | BX115: =SUM(BX116,BX121,BX126,BX131) -> 0 | BY115: 0 | BZ115: 0 | CA115: 0 | CB115: 0 | CC115: 0 | CD115: 0 | CE115: 0 | CF115: 0 | CG115: =SUM(CG116,CG121,CG126,CG131) -> 53437.07
A116: 115 | G116: (א) | H116: =$H$48 -> דרוג AA- ומעלה | J116: 715836.94 | K116: =SUM(K117:K120) -> 22.12984918 | L116: =SUM(L117:L120) -> 9048.523148 | M116: 288774.7275 | N116: 9358.719527 | O116: 178256.95 | P116: 18805.02872 | Q116: 61826.19 | R116: 17951.3 | S116: 0 | T116: 0 | U116: 495.39 | V116: 0 | W116: 1662.55 | X116: 0 | Y116: 1059.301277 | Z116: 0 | AA116: 37.35 | AB116: 0 | AC116: 17218.92016 | AD116: 7248.314762 | AE116: 12647.36861 | AF116: 16895.29456 | AG116: 9814.087892 | AH116: 388.7398402 | AI116: 1118.945238 | AJ116: 2342.091388 | AK116: 8573.405442 | AL116: 4135.712108 | AM116: 0 | AN116: 0 | AO116: 0 | AP116: 0 | AQ116: 0 | AR116: 0 | AS116: 0 | AT116: 0 | AU116: 0 | AV116: 0 | AW116: 0 | AX116: 0 | AY116: 0 | AZ116: 0 | BA116: 0 | BB116: 0 | BC116: 0 | BD116: 0 | BE116: 0 | BF116: 0 | BG116: 0 | BH116: 0 | BI116: 0 | BJ116: 0 | BK116: 0 | BL116: 0 | BM116: 0 | BN116: 0 | BO116: 0 | BP116: 0 | BQ116: 0 | BR116: 0 | BS116: 0 | BT116: 0 | BU116: 0 | BV116: 0 | BW116: 0 | BX116: =SUM(BX117:BX120) -> 0 | BY116: 0 | BZ116: 0 | CA116: 0 | CB116: 0 | CC116: 0 | CD116: 0 | CE116: 0 | CF116: 0 | CG116: =SUM(CG117:CG120) -> 48155.9
A117: 116 | H117: a | I117: צמוד מדד | J117: 585126.74 | K117: 19.54853974 | L117: 7993.069129 | M117: 255090.9493 | N117: 8267.083028 | O117: 142282.37 | P117: 17610.45969 | Q117: 49573.94 | R117: 12776.58 | S117: 0 | T117: 0 | W117: 709.11 | X117: 0 | Y117: 992.0103128 | Z117: 0 | AC117: 11247.65925 | AD117: 5056.770388 | AE117: 8392.738414 | AF117: 12478.27295 | AG117: 6507.691865 | AH117: 253.9307471 | AI117: 780.6296123 | AJ117: 1554.201586 | AK117: 6332.017051 | AL117: 2742.378135 | CG117: 34465.33
A118: 117 | H118: b | I118: לא צמוד | J118: 93532.99 | K118: 1.804444684 | L118: 737.8070839 | M118: 23546.3883 | N118: 763.1001712 | O118: 25403.6 | P118: 486.504821 | Q118: 9447.29 | R118: 4450.88 | S118: 0 | T118: 0 | W118: 805.63 | X118: 0 | Y118: 27.40517898 | Z118: 0 | AC118: 4848.987705 | AD118: 1842.359194 | AE118: 3575.554256 | AF118: 3581.3617 | AG118: 2654.379483 | AH118: 109.4722949 | AI118: 284.4108063 | AJ118: 662.1357443 | AK118: 1817.3383 | AL118: 1118.570517 | CG118: 7368.01
A119: 118 | H119: c | I119: צמוד מט"ח | J119: 37177.21 | K119: 0.7768647586 | L119: 317.6469344 | M119: 10137.38987 | N119: 328.5363279 | O119: 10570.98 | P119: 708.0642153 | Q119: 2804.96 | R119: 723.84 | S119: 0 | T119: 0 | U119: 495.39 | W119: 147.81 | X119: 0 | Y119: 39.88578471 | Z119: 0 | AA119: 37.35 | AC119: 1122.273202 | AD119: 349.185181 | AE119: 679.0759427 | AF119: 835.6599083 | AG119: 652.0165433 | AH119: 25.33679819 | AI119: 53.904819 | AJ119: 125.7540573 | AK119: 424.0500917 | AL119: 274.7634567 | CG119: 6322.56
A120: 119 | H120: d | I120: אחר | J120: 0 | K120: 0 | L120: 0 | M120: 0 | N120: 0 | P120: 0 | S120: 0 | T120: 0 | X120: 0 | Y120: 0 | Z120: 0 | AC120: 0 | AD120: 0 | AE120: 0 | AF120: 0 | AG120: 0 | AH120: 0 | AI120: 0 | AJ120: 0 | AK120: 0 | AL120: 0 | CG120: 0
A121: 120 | G121: (ב) | H121: =$H$52 -> דרוג BBB- ועד A+ | J121: 74466.81 | K121: =SUM(K122:K125) -> 1.911500722 | L121: =SUM(L122:L125) -> 781.5804977 | M121: 24943.3738 | N121: 808.3742006 | O121: 19389.8 | P121: 1515.500716 | Q121: 6817.54 | R121: 2741.28 | S121: 0 | T121: 0 | U121: 0 | V121: 0 | W121: 67.77 | X121: 0 | Y121: 85.36928427 | Z121: 0 | AA121: 0 | AB121: 0 | AC121: 2737.507164 | AD121: 1108.774915 | AE121: 2029.229071 | AF121: 2624.363901 | AG121: 1494.921592 | AH121: 61.80283593 | AI121: 171.1650848 | AJ121: 375.7809293 | AK121: 1331.716099 | AL121: 629.9684083 | AM121: 0 | AN121: 0 | AO121: 0 | AP121: 0 | AQ121: 0 | AR121: 0 | AS121: 0 | AT121: 0 | AU121: 0 | AV121: 0 | AW121: 0 | AX121: 0 | AY121: 0 | AZ121: 0 | BA121: 0 | BB121: 0 | BC121: 0 | BD121: 0 | BE121: 0 | BF121: 0 | BG121: 0 | BH121: 0 | BI121: 0 | BJ121: 0 | BK121: 0 | BL121: 0 | BM121: 0 | BN121: 0 | BO121: 0 | BP121: 0 | BQ121: 0 | BR121: 0 | BS121: 0 | BT121: 0 | BU121: 0 | BV121: 0 | BW121: 0 | BX121: =SUM(BX122:BX125) -> 0 | BY121: 0 | BZ121: 0 | CA121: 0 | CB121: 0 | CC121: 0 | CD121: 0 | CE121: 0 | CF121: 0 | CG121: =SUM(CG122:CG125) -> 4749.08
A122: 121 | H122: a | I122: צמוד מדד | J122: 38482.03 | K122: 1.215214337 | L122: 496.880705 | M122: 15857.45959 | N122: 513.9144898 | O122: 9152.05 | P122: 1282.865245 | Q122: 3755.17 | R122: 1028.95 | S122: 0 | T122: 0 | W122: 49.25 | X122: 0 | Y122: 72.26475491 | Z122: 0 | AC122: 944.1935841 | AD122: 424.4901198 | AE122: 704.5319038 | AF122: 1047.495393 | AG122: 546.2902155 | AH122: 21.31641587 | AI122: 65.52988019 | AJ122: 130.4680962 | AK122: 531.5446069 | AL122: 230.2097845 | CG122: 1625.94
A123: 122 | H123: b | I123: לא צמוד | J123: 35984.78 | K123: 0.6962863851 | L123: 284.6997927 | M123: 9085.91421 | N123: 294.4597108 | O123: 10237.75 | P123: 232.6354706 | Q123: 3062.37 | R123: 1712.33 | S123: 0 | T123: 0 | W123: 18.52 | X123: 0 | Y123: 13.10452936 | Z123: 0 | AC123: 1793.31358 | AD123: 684.2847954 | AE123: 1324.697167 | AF123: 1576.868508 | AG123: 948.6313763 | AH123: 40.48642006 | AI123: 105.6352046 | AJ123: 245.3128332 | AK123: 800.1714918 | AL123: 399.7586237 | CG123: 3123.14
A124: 123 | H124: c | I124: צמוד מט"ח | J124: 0 | K124: 0 | L124: 0 | M124: 0 | N124: 0 | P124: 0 | S124: 0 | T124: 0 | X124: 0 | Y124: 0 | Z124: 0 | AC124: 0 | AD124: 0 | AE124: 0 | AF124: 0 | AG124: 0 | AH124: 0 | AI124: 0 | AJ124: 0 | AK124: 0 | AL124: 0 | CG124: 0
A125: 124 | H125: d | I125: אחר | J125: 0 | K125: 0 | L125: 0 | M125: 0 | N125: 0 | P125: 0 | S125: 0 | T125: 0 | X125: 0 | Y125: 0 | Z125: 0 | AC125: 0 | AD125: 0 | AE125: 0 | AF125: 0 | AG125: 0 | AH125: 0 | AI125: 0 | AJ125: 0 | AK125: 0 | AL125: 0 | CG125: 0
A126: 125 | G126: (ג) | H126: =$H$69 -> בדרוג נמוך מ- BBB- או לא מדורג עם בטוחה מספקת | J126: 0 | K126: =SUM(K127:K130) -> 0 | L126: =SUM(L127:L130) -> 0 | M126: 0 | N126: 0 | O126: 0 | P126: 0 | Q126: 0 | R126: 0 | S126: 0 | T126: 0 | U126: 0 | V126: 0 | W126: 0 | X126: 0 | Y126: 0 | Z126: 0 | AA126: 0 | AB126: 0 | AC126: 0 | AD126: 0 | AE126: 0 | AF126: 0 | AG126: 0 | AH126: 0 | AI126: 0 | AJ126: 0 | AK126: 0 | AL126: 0 | AM126: 0 | AN126: 0 | AO126: 0 | AP126: 0 | AQ126: 0 | AR126: 0 | AS126: 0 | AT126: 0 | AU126: 0 | AV126: 0 | AW126: 0 | AX126: 0 | AY126: 0 | AZ126: 0 | BA126: 0 | BB126: 0 | BC126: 0 | BD126: 0 | BE126: 0 | BF126: 0 | BG126: 0 | BH126: 0 | BI126: 0 | BJ126: 0 | BK126: 0 | BL126: 0 | BM126: 0 | BN126: 0 | BO126: 0 | BP126: 0 | BQ126: 0 | BR126: 0 | BS126: 0 | BT126: 0 | BU126: 0 | BV126: 0 | BW126: 0 | BX126: =SUM(BX127:BX130) -> 0 | BY126: 0 | BZ126: 0 | CA126: 0 | CB126: 0 | CC126: 0 | CD126: 0 | CE126: 0 | CF126: 0 | CG126: =SUM(CG127:CG130) -> 0
A127: 126 | H127: a | I127: צמוד מדד | J127: 0 | K127: 0 | L127: 0 | M127: 0 | N127: 0 | P127: 0 | S127: 0 | T127: 0 | X127: 0 | Y127: 0 | Z127: 0 | AC127: 0 | AD127: 0 | AE127: 0 | AF127: 0 | AG127: 0 | AH127: 0 | AI127: 0 | AJ127: 0 | AK127: 0 | AL127: 0 | CG127: 0
A128: 127 | H128: b | I128: לא צמוד | J128: 0 | K128: 0 | L128: 0 | M128: 0 | N128: 0 | P128: 0 | S128: 0 | T128: 0 | X128: 0 | Y128: 0 | Z128: 0 | AC128: 0 | AD128: 0 | AE128: 0 | AF128: 0 | AG128: 0 | AH128: 0 | AI128: 0 | AJ128: 0 | AK128: 0 | AL128: 0 | CG128: 0
A129: 128 | H129: c | I129: צמוד מט"ח | J129: 0 | K129: 0 | L129: 0 | M129: 0 | N129: 0 | P129: 0 | S129: 0 | T129: 0 | X129: 0 | Y129: 0 | Z129: 0 | AC129: 0 | AD129: 0 | AE129: 0 | AF129: 0 | AG129: 0 | AH129: 0 | AI129: 0 | AJ129: 0 | AK129: 0 | AL129: 0 | CG129: 0
A130: 129 | H130: d | I130: אחר | J130: 0 | K130: 0 | L130: 0 | M130: 0 | N130: 0 | P130: 0 | S130: 0 | T130: 0 | X130: 0 | Y130: 0 | Z130: 0 | AC130: 0 | AD130: 0 | AE130: 0 | AF130: 0 | AG130: 0 | AH130: 0 | AI130: 0 | AJ130: 0 | AK130: 0 | AL130: 0 | CG130: 0
A131: 130 | G131: (ד) | H131: =$H$56 -> דרוג נמוך מ- BBB- או לא מדורג | J131: 6627.74 | K131: =SUM(K132:K135) -> 0.2009841809 | L131: =SUM(L132:L135) -> 82.1790514 | M131: 2622.663697 | N131: 84.9962674 | O131: 1513.66 | P131: 212.1683962 | Q131: 621.07 | R131: 170.18 | S131: 0 | T131: 0 | U131: 0 | V131: 0 | W131: 8.15 | X131: 0 | Y131: 11.95160381 | Z131: 0 | AA131: 0 | AB131: 0 | AC131: 156.164383 | AD131: 70.21126528 | AE131: 116.5219831 | AF131: 173.2469709 | AG131: 90.3542207 | AH131: 3.52561698 | AI131: 10.83873472 | AJ131: 21.57801687 | AK131: 87.91302914 | AL131: 38.0757793 | AM131: 0 | AN131: 0 | AO131: 0 | AP131: 0 | AQ131: 0 | AR131: 0 | AS131: 0 | AT131: 0 | AU131: 0 | AV131: 0 | AW131: 0 | AX131: 0 | AY131: 0 | AZ131: 0 | BA131: 0 | BB131: 0 | BC131: 0 | BD131: 0 | BE131: 0 | BF131: 0 | BG131: 0 | BH131: 0 | BI131: 0 | BJ131: 0 | BK131: 0 | BL131: 0 | BM131: 0 | BN131: 0 | BO131: 0 | BP131: 0 | BQ131: 0 | BR131: 0 | BS131: 0 | BT131: 0 | BU131: 0 | BV131: 0 | BW131: 0 | BX131: =SUM(BX132:BX135) -> 0 | BY131: 0 | BZ131: 0 | CA131: 0 | CB131: 0 | CC131: 0 | CD131: 0 | CE131: 0 | CF131: 0 | CG131: =SUM(CG132:CG135) -> 532.09
A132: 131 | H132: a | I132: צמוד מדד | J132: 6627.74 | K132: 0.2009841809 | L132: 82.1790514 | M132: 2622.663697 | N132: 84.9962674 | O132: 1513.66 | P132: 212.1683962 | Q132: 621.07 | R132: 170.18 | S132: 0 | T132: 0 | W132: 8.15 | X132: 0 | Y132: 11.95160381 | Z132: 0 | AC132: 156.164383 | AD132: 70.21126528 | AE132: 116.5219831 | AF132: 173.2469709 | AG132: 90.3542207 | AH132: 3.52561698 | AI132: 10.83873472 | AJ132: 21.57801687 | AK132: 87.91302914 | AL132: 38.0757793 | CG132: 532.09
A133: 132 | H133: b | I133: לא צמוד | J133: 0 | K133: 0 | L133: 0 | M133: 0 | N133: 0 | P133: 0 | S133: 0 | T133: 0 | X133: 0 | Y133: 0 | Z133: 0 | AC133: 0 | AD133: 0 | AE133: 0 | AF133: 0 | AG133: 0 | AH133: 0 | AI133: 0 | AJ133: 0 | AK133: 0 | AL133: 0 | CG133: 0
A134: 133 | H134: c | I134: צמוד מט"ח | J134: 0 | K134: 0 | L134: 0 | M134: 0 | N134: 0 | P134: 0 | S134: 0 | T134: 0 | X134: 0 | Y134: 0 | Z134: 0 | AC134: 0 | AD134: 0 | AE134: 0 | AF134: 0 | AG134: 0 | AH134: 0 | AI134: 0 | AJ134: 0 | AK134: 0 | AL134: 0 | CG134: 0
A135: 134 | H135: d | I135: אחר | J135: 0 | K135: 0 | L135: 0 | M135: 0 | N135: 0 | P135: 0 | S135: 0 | T135: 0 | X135: 0 | Y135: 0 | Z135: 0 | AC135: 0 | AD135: 0 | AE135: 0 | AF135: 0 | AG135: 0 | AH135: 0 | AI135: 0 | AJ135: 0 | AK135: 0 | AL135: 0 | CG135: 0
A136: 135 | E136: ב) | F136: בחו"ל | J136: 2583261.57 | K136: =SUM(K137,K141,K146,K150) -> 54.63328185 | L136: =SUM(L137,L141,L146,L150) -> 22338.63012 | M136: 712915.4361 | N136: 23104.43047 | O136: 700983.86 | P136: 50599.54021 | Q136: 355884.58 | R136: 50892.1 | S136: 41.37183064 | T136: 0 | U136: 60668.76 | V136: 0 | W136: 19694.32 | X136: 0 | Y136: 2850.309793 | Z136: 1.70816936 | AA136: 7674.6 | AB136: 0 | AC136: 90211.47689 | AD136: 33283.6568 | AE136: 54474.07774 | AF136: 82949.21145 | AG136: 58703.46714 | AH136: 2036.64311 | AI136: 5138.103199 | AJ136: 10087.73226 | AK136: 42092.02855 | AL136: 24737.97286 | AM136: 0 | AN136: 0 | AO136: 0 | AP136: 0 | AQ136: 0 | AR136: 0 | AS136: 0 | AT136: 0 | AU136: 0 | AV136: 0 | AW136: 0 | AX136: 0 | AY136: 0 | AZ136: 0 | BA136: 0 | BB136: 0 | BC136: 0 | BD136: 0 | BE136: 0 | BF136: 0 | BG136: 0 | BH136: 0 | BI136: 0 | BJ136: 0 | BK136: 0 | BL136: 0 | BM136: 0 | BN136: 0 | BO136: 0 | BP136: 0 | BQ136: 0 | BR136: 0 | BS136: 0 | BT136: 0 | BU136: 0 | BV136: 0 | BW136: 0 | BX136: =SUM(BX137,BX141,BX146,BX150) -> 0 | BY136: 0 | BZ136: 0 | CA136: 0 | CB136: 0 | CC136: 0 | CD136: 0 | CE136: 0 | CF136: 0 | CG136: =SUM(CG137,CG141,CG146,CG150) -> 171842.92
A137: 136 | F137: (1) | G137: סחיר - חברות ישראליות | J137: 161010.25 | K137: =SUM(K138:K140) -> 3.870510831 | L137: =SUM(L138:L140) -> 1582.586784 | M137: 50506.70257 | N137: 1636.840134 | O137: 41993.5 | P137: 6294.875002 | Q137: 22580.5 | R137: 5684.83 | S137: 10.6598728 | T137: 0 | U137: 360.25 | V137: 0 | W137: 1100.48 | X137: 0 | Y137: 354.5949981 | Z137: 0.4401272029 | AA137: 119.1 | AB137: 0 | AC137: 2525.581662 | AD137: 1145.634747 | AE137: 3012.27467 | AF137: 4779.350307 | AG137: 2539.443961 | AH137: 57.01833812 | AI137: 176.8552534 | AJ137: 557.8253296 | AK137: 2425.249693 | AL137: 1070.136039 | AM137: 0 | AN137: 0 | AO137: 0 | AP137: 0 | AQ137: 0 | AR137: 0 | AS137: 0 | AT137: 0 | AU137: 0 | AV137: 0 | AW137: 0 | AX137: 0 | AY137: 0 | AZ137: 0 | BA137: 0 | BB137: 0 | BC137: 0 | BD137: 0 | BE137: 0 | BF137: 0 | BG137: 0 | BH137: 0 | BI137: 0 | BJ137: 0 | BK137: 0 | BL137: 0 | BM137: 0 | BN137: 0 | BO137: 0 | BP137: 0 | BQ137: 0 | BR137: 0 | BS137: 0 | BT137: 0 | BU137: 0 | BV137: 0 | BW137: 0 | BX137: =SUM(BX138:BX140) -> 0 | BY137: 0 | BZ137: 0 | CA137: 0 | CB137: 0 | CC137: 0 | CD137: 0 | CE137: 0 | CF137: 0 | CG137: =SUM(CG138:CG140) -> 10491.65
A138: 137 | G138: (א) | H138: =$H$79 -> דרוג A- ומעלה | J138: 53244.46 | K138: 1.146173299 | L138: 468.6509856 | M138: 14956.53583 | N138: 484.717015 | O138: 13344.61 | P138: 1696.589831 | Q138: 8857.59 | R138: 2193.64 | S138: 4.907382882 | T138: 0 | W138: 380.16 | X138: 0 | Y138: 95.57016903 | Z138: 0.2026171177 | AC138: 1096.788551 | AD138: 501.337021 | AE138: 1285.724318 | AF138: 2138.395401 | AG138: 1160.513185 | AH138: 24.76144858 | AI138: 77.39297899 | AJ138: 238.0956818 | AK138: 1085.114599 | AL138: 489.0468154 | CG138: 2662.97
A139: 138 | G139: (ב) | H139: =$H$80 -> דרוג BBB- ועד BBB+ | J139: 45379.45 | K139: 1.381370404 | L139: 564.8191262 | M139: 18025.64757 | N139: 584.1819377 | O139: 13013.06 | P139: 2610.403998 | Q139: 3344.49 | R139: 920.91 | S139: 0 | T139: 0 | U139: 360.25 | W139: 274.89 | X139: 0 | Y139: 147.0460018 | Z139: 0 | AA139: 119.1 | AC139: 143.695876 | AD139: 56.88801716 | AE139: 220.0755167 | AF139: 135.4014368 | AG139: 19.1641281 | AH139: 3.244123985 | AI139: 8.781982842 | AJ139: 40.75448327 | AK139: 68.70856325 | AL139: 8.0758719 | CG139: 4708.48
A140: =A139+1 -> 139 | G140: (ג) | H140: =$H$81 -> דרוג נמוך מ- BBB- או לא מדורג | J140: =SUM(K140:CG140) -> 62386.34 | K140: 1.342967128 | L140: 549.1166725 | M140: 17524.51918 | N140: 567.9411813 | O140: 15635.83 | P140: 1987.881173 | Q140: 10378.42 | R140: 2570.28 | S140: 5.752489915 | T140: 0 | W140: 445.43 | X140: 0 | Y140: 111.9788273 | Z140: 0.2375100852 | AC140: 1285.097234 | AD140: 587.4097085 | AE140: 1506.474836 | AF140: 2505.553469 | AG140: 1359.766649 | AH140: 29.01276555 | AI140: 90.68029154 | AJ140: 278.9751645 | AK140: 1271.426531 | AL140: 573.0133513 | CG140: 3120.2
A141: 140 | F141: (2) | G141: לא סחיר - חברות ישראליות | J141: 0 | K141: =SUM(K142:K145) -> 0 | L141: =SUM(L142:L145) -> 0 | M141: 0 | N141: 0 | O141: 0 | P141: 0 | Q141: 0 | R141: 0 | S141: 0 | T141: 0 | U141: 0 | V141: 0 | W141: 0 | X141: 0 | Y141: 0 | Z141: 0 | AA141: 0 | AB141: 0 | AC141: 0 | AD141: 0 | AE141: 0 | AF141: 0 | AG141: 0 | AH141: 0 | AI141: 0 | AJ141: 0 | AK141: 0 | AL141: 0 | AM141: 0 | AN141: 0 | AO141: 0 | AP141: 0 | AQ141: 0 | AR141: 0 | AS141: 0 | AT141: 0 | AU141: 0 | AV141: 0 | AW141: 0 | AX141: 0 | AY141: 0 | AZ141: 0 | BA141: 0 | BB141: 0 | BC141: 0 | BD141: 0 | BE141: 0 | BF141: 0 | BG141: 0 | BH141: 0 | BI141: 0 | BJ141: 0 | BK141: 0 | BL141: 0 | BM141: 0 | BN141: 0 | BO141: 0 | BP141: 0 | BQ141: 0 | BR141: 0 | BS141: 0 | BT141: 0 | BU141: 0 | BV141: 0 | BW141: 0 | BX141: =SUM(BX142:BX145) -> 0 | BY141: 0 | BZ141: 0 | CA141: 0 | CB141: 0 | CC141: 0 | CD141: 0 | CE141: 0 | CF141: 0 | CG141: =SUM(CG142:CG145) -> 0
A142: 141 | G142: (א) | H142: =$H$79 -> דרוג A- ומעלה | J142: 0 | K142: 0 | L142: 0 | M142: 0 | N142: 0 | P142: 0 | S142: 0 | T142: 0 | X142: 0 | Y142: 0 | Z142: 0 | AC142: 0 | AD142: 0 | AE142: 0 | AF142: 0 | AG142: 0 | AH142: 0 | AI142: 0 | AJ142: 0 | AK142: 0 | AL142: 0 | CG142: 0
A143: 142 | G143: (ב) | H143: =$H$80 -> דרוג BBB- ועד BBB+ | J143: 0 | K143: 0 | L143: 0 | M143: 0 | N143: 0 | P143: 0 | S143: 0 | T143: 0 | X143: 0 | Y143: 0 | Z143: 0 | AC143: 0 | AD143: 0 | AE143: 0 | AF143: 0 | AG143: 0 | AH143: 0 | AI143: 0 | AJ143: 0 | AK143: 0 | AL143: 0 | CG143: 0
A144: 143 | G144: (ג) | H144: =$H$69 -> בדרוג נמוך מ- BBB- או לא מדורג עם בטוחה מספקת | J144: 0 | K144: 0 | L144: 0 | M144: 0 | N144: 0 | P144: 0 | S144: 0 | T144: 0 | X144: 0 | Y144: 0 | Z144: 0 | AC144: 0 | AD144: 0 | AE144: 0 | AF144: 0 | AG144: 0 | AH144: 0 | AI144: 0 | AJ144: 0 | AK144: 0 | AL144: 0 | CG144: 0
A145: 144 | G145: (ד) | H145: =H140 -> דרוג נמוך מ- BBB- או לא מדורג | J145: 0 | K145: 0 | L145: 0 | M145: 0 | N145: 0 | P145: 0 | S145: 0 | T145: 0 | X145: 0 | Y145: 0 | Z145: 0 | AC145: 0 | AD145: 0 | AE145: 0 | AF145: 0 | AG145: 0 | AH145: 0 | AI145: 0 | AJ145: 0 | AK145: 0 | AL145: 0 | CG145: 0
A146: 145 | F146: (3) | G146: סחיר - חברות זרות | J146: 2330989.71 | K146: =SUM(K147:K149) -> 48.61950572 | L146: =SUM(L147:L149) -> 19879.6982 | M146: 634441.0395 | N146: 20561.20283 | O146: 629826.45 | P146: 42351.21454 | Q146: 325565.58 | R146: 43210.3 | S146: 30.71195784 | T146: 0 | U146: 58941.79 | V146: 0 | W146: 18186.05 | X146: 0 | Y146: 2385.675464 | Z146: 1.268042158 | AA146: 7452.46 | AB146: 0 | AC146: 84589.68623 | AD146: 31174.65939 | AE146: 49588.32196 | AF146: 75864.38152 | AG146: 54365.19116 | AH146: 1909.723769 | AI146: 4812.530609 | AJ146: 9182.968044 | AK146: 38496.87848 | AL146: 22909.79884 | AM146: 0 | AN146: 0 | AO146: 0 | AP146: 0 | AQ146: 0 | AR146: 0 | AS146: 0 | AT146: 0 | AU146: 0 | AV146: 0 | AW146: 0 | AX146: 0 | AY146: 0 | AZ146: 0 | BA146: 0 | BB146: 0 | BC146: 0 | BD146: 0 | BE146: 0 | BF146: 0 | BG146: 0 | BH146: 0 | BI146: 0 | BJ146: 0 | BK146: 0 | BL146: 0 | BM146: 0 | BN146: 0 | BO146: 0 | BP146: 0 | BQ146: 0 | BR146: 0 | BS146: 0 | BT146: 0 | BU146: 0 | BV146: 0 | BW146: 0 | BX146: =SUM(BX147:BX149) -> 0 | BY146: 0 | BZ146: 0 | CA146: 0 | CB146: 0 | CC146: 0 | CD146: 0 | CE146: 0 | CF146: 0 | CG146: =SUM(CG147:CG149) -> 155213.51
A147: 146 | G147: (א) | H147: =$H$79 -> דרוג A- ומעלה | J147: 142258.77 | K147: 2.965209657 | L147: 1212.42436 | M147: 38693.33242 | N147: 1253.98801 | O147: 38434.71 | P147: 2586.756102 | Q147: 19879.28 | R147: 2637.73 | S147: 0 | T147: 0 | U147: 3599.7 | W147: 1110.78 | X147: 0 | Y147: 145.7138982 | Z147: 0 | AA147: 455.19 | AC147: 5166.440783 | AD147: 1904.055015 | AE147: 3028.575936 | AF147: 4633.527252 | AG147: 3320.558064 | AH147: 116.639217 | AI147: 293.934985 | AJ147: 560.8440644 | AK147: 2351.252748 | AL147: 1399.301936 | CG147: 9471.07
A148: 147 | G148: (ב) | H148: =$H$80 -> דרוג BBB- ועד BBB+ | J148: 1859718.1 | K148: 38.76354416 | L148: 15849.76128 | M148: 505829.5613 | N148: 16393.11388 | O148: 502448.53 | P148: 33816.15102 | Q148: 259877.55 | R148: 34482.53 | S148: 0 | T148: 0 | U148: 47058.11 | W148: 14521.01 | X148: 0 | Y148: 1904.888978 | Z148: 0 | AA148: 5950.56 | AC148: 67539.78035 | AD148: 24891.27524 | AE148: 39591.8833 | AF148: 60573.13394 | AG148: 43408.94516 | AH148: 1524.799649 | AI148: 3842.544757 | AJ148: 7331.786696 | AK148: 30737.43606 | AL148: 18292.77484 | CG148: 123813.21
A149: 148 | G149: (ג) | H149: =$H$81 -> דרוג נמוך מ- BBB- או לא מדורג | J149: 329012.84 | K149: 6.890751905 | L149: 2817.512565 | M149: 89918.14574 | N149: 2914.100946 | O149: 88943.21 | P149: 5948.307412 | Q149: 45808.75 | R149: 6090.04 | S149: 30.71195784 | T149: 0 | U149: 8283.98 | W149: 2554.26 | X149: 0 | Y149: 335.0725876 | Z149: 1.268042158 | AA149: 1046.71 | AC149: 11883.4651 | AD149: 4379.329133 | AE149: 6967.862716 | AF149: 10657.72033 | AG149: 7635.687943 | AH149: 268.2849029 | AI149: 676.0508667 | AJ149: 1290.337284 | AK149: 5408.189669 | AL149: 3217.722057 | CG149: 21929.23
A150: 149 | F150: (4) | G150: לא סחיר - חברות זרות | J150: 91261.61 | K150: =SUM(K151:K154) -> 2.143265297 | L150: =SUM(L151:L154) -> 876.3451346 | M150: 27967.69409 | N150: 906.3875054 | O150: 29163.91 | P150: 1953.450669 | Q150: 7738.5 | R150: 1996.97 | S150: 0 | T150: 0 | U150: 1366.72 | V150: 0 | W150: 407.79 | X150: 0 | Y150: 110.0393314 | Z150: 0 | AA150: 103.04 | AB150: 0 | AC150: 3096.208997 | AD150: 963.3626636 | AE150: 1873.481114 | AF150: 2305.47962 | AG150: 1798.83202 | AH150: 69.90100306 | AI150: 148.7173364 | AJ150: 346.9388864 | AK150: 1169.90038 | AL150: 758.0379803 | AM150: 0 | AN150: 0 | AO150: 0 | AP150: 0 | AQ150: 0 | AR150: 0 | AS150: 0 | AT150: 0 | AU150: 0 | AV150: 0 | AW150: 0 | AX150: 0 | AY150: 0 | AZ150: 0 | BA150: 0 | BB150: 0 | BC150: 0 | BD150: 0 | BE150: 0 | BF150: 0 | BG150: 0 | BH150: 0 | BI150: 0 | BJ150: 0 | BK150: 0 | BL150: 0 | BM150: 0 | BN150: 0 | BO150: 0 | BP150: 0 | BQ150: 0 | BR150: 0 | BS150: 0 | BT150: 0 | BU150: 0 | BV150: 0 | BW150: 0 | BX150: =SUM(BX151:BX154) -> 0 | BY150: 0 | BZ150: 0 | CA150: 0 | CB150: 0 | CC150: 0 | CD150: 0 | CE150: 0 | CF150: 0 | CG150: =SUM(CG151:CG154) -> 6137.76
A151: 150 | G151: (א) | H151: =$H$79 -> דרוג A- ומעלה | J151: 0 | K151: 0 | L151: 0 | M151: 0 | N151: 0 | P151: 0 | S151: 0 | T151: 0 | X151: 0 | Y151: 0 | Z151: 0 | AC151: 0 | AD151: 0 | AE151: 0 | AF151: 0 | AG151: 0 | AH151: 0 | AI151: 0 | AJ151: 0 | AK151: 0 | AL151: 0 | CG151: 0
A152: 151 | G152: (ב) | H152: =$H$80 -> דרוג BBB- ועד BBB+ | J152: 0 | K152: 0 | L152: 0 | M152: 0 | N152: 0 | P152: 0 | S152: 0 | T152: 0 | X152: 0 | Y152: 0 | Z152: 0 | AC152: 0 | AD152: 0 | AE152: 0 | AF152: 0 | AG152: 0 | AH152: 0 | AI152: 0 | AJ152: 0 | AK152: 0 | AL152: 0 | CG152: 0
A153: 152 | G153: (ג) | H153: =$H$69 -> בדרוג נמוך מ- BBB- או לא מדורג עם בטוחה מספקת | J153: 0 | K153: 0 | L153: 0 | M153: 0 | N153: 0 | P153: 0 | S153: 0 | T153: 0 | X153: 0 | Y153: 0 | Z153: 0 | AC153: 0 | AD153: 0 | AE153: 0 | AF153: 0 | AG153: 0 | AH153: 0 | AI153: 0 | AJ153: 0 | AK153: 0 | AL153: 0 | CG153: 0
A154: 153 | G154: (ד) | H154: =H149 -> דרוג נמוך מ- BBB- או לא מדורג | J154: 91261.61 | K154: 2.143265297 | L154: 876.3451346 | M154: 27967.69409 | N154: 906.3875054 | O154: 29163.91 | P154: 1953.450669 | Q154: 7738.5 | R154: 1996.97 | S154: 0 | T154: 0 | U154: 1366.72 | W154: 407.79 | X154: 0 | Y154: 110.0393314 | Z154: 0 | AA154: 103.04 | AC154: 3096.208997 | AD154: 963.3626636 | AE154: 1873.481114 | AF154: 2305.47962 | AG154: 1798.83202 | AH154: 69.90100306 | AI154: 148.7173364 | AJ154: 346.9388864 | AK154: 1169.90038 | AL154: 758.0379803 | CG154: 6137.76
A155: 154 | AC155: 0 | AD155: 0 | AE155: 0 | AF155: 0 | AG155: 0 | AH155: 0 | AI155: 0 | AJ155: 0 | AK155: 0 | AL155: 0 | CG155: 0
A156: 155 | D156: 4) | E156: מניות (למעט חברות מוחזקות) | J156: 17373009.34 | K156: =SUM(K157,K167) -> 456.2461221 | L156: =SUM(L157,L167) -> 186551.3662 | M156: 5953603.593 | N156: 192946.6151 | O156: 5680141.07 | P156: 70149.48713 | Q156: 591808.29 | R156: 102734.56 | S156: 1257502.996 | T156: 0 | U156: 32716.47 | V156: 0 | W156: 331.38 | X156: 0 | Y156: 3951.572867 | Z156: 51920.06386 | AA156: 743.7 | AB156: 0 | AC156: 637682.3301 | AD156: 195377.386 | AE156: 177972.9602 | AF156: 430002.3848 | AG156: 84444.45104 | AH156: 14396.51992 | AI156: 30161.02401 | AJ156: 32957.75984 | AK156: 218201.8652 | AL156: 35585.36896 | AM156: 178252.97 | AN156: 0 | AO156: 0 | AP156: 0 | AQ156: 0 | AR156: 0 | AS156: 0 | AT156: 0 | AU156: 0 | AV156: 0 | AW156: 0 | AX156: 0 | AY156: 0 | AZ156: 0 | BA156: 0 | BB156: 0 | BC156: 0 | BD156: 0 | BE156: 0 | BF156: 0 | BG156: 0 | BH156: 0 | BI156: 0 | BJ156: 0 | BK156: 0 | BL156: 0 | BM156: 0 | BN156: 0 | BO156: 0 | BP156: 0 | BQ156: 0 | BR156: 0 | BS156: 0 | BT156: 0 | BU156: 0 | BV156: 0 | BW156: 0 | BX156: =SUM(BX157,BX167) -> 0 | BY156: 0 | BZ156: 0 | CA156: 0 | CB156: 0 | CC156: 0 | CD156: 0 | CE156: 0 | CF156: 0 | CG156: =SUM(CG157,CG167) -> 1212416.91
A157: 156 | E157: א) | F157: בישראל | J157: 11148627.01 | K157: =SUM(K158,K166) -> 303.4062998 | L157: =SUM(L158,L166) -> 124057.7333 | M157: 3959180.69 | N157: 128310.6107 | O157: 3482546.08 | P157: 1012.987651 | Q157: 279265.6 | R157: 35926.34 | S157: 917484.2557 | T157: 0 | U157: 1721.42 | V157: 0 | W157: 331.38 | X157: 0 | Y157: 57.06234899 | Z157: 37881.29435 | AA157: 0 | AB157: 0 | AC157: 432584.7095 | AD157: 131482.8909 | AE157: 115113.569 | AF157: 301623.3411 | AG157: 56601.18903 | AH157: 9766.170542 | AI157: 20297.42905 | AJ157: 21317.20099 | AK157: 153056.7689 | AL157: 23852.06097 | AM157: 129625.55 | AN157: 0 | AO157: 0 | AP157: 0 | AQ157: 0 | AR157: 0 | AS157: 0 | AT157: 0 | AU157: 0 | AV157: 0 | AW157: 0 | AX157: 0 | AY157: 0 | AZ157: 0 | BA157: 0 | BB157: 0 | BC157: 0 | BD157: 0 | BE157: 0 | BF157: 0 | BG157: 0 | BH157: 0 | BI157: 0 | BJ157: 0 | BK157: 0 | BL157: 0 | BM157: 0 | BN157: 0 | BO157: 0 | BP157: 0 | BQ157: 0 | BR157: 0 | BS157: 0 | BT157: 0 | BU157: 0 | BV157: 0 | BW157: 0 | BX157: =SUM(BX158,BX166) -> 0 | BY157: 0 | BZ157: 0 | CA157: 0 | CB157: 0 | CC157: 0 | CD157: 0 | CE157: 0 | CF157: 0 | CG157: =SUM(CG158,CG166) -> 785227.27
A158: 157 | F158: (1) | G158: סחיר | J158: 10546303.57 | K158: =SUM(K159,K163,K164,K165) -> 280.9052028 | L158: =SUM(L159,L163,L164,L165) -> 114857.4132 | M158: 3665561.511 | N158: 118794.8904 | O158: 3357735.64 | P158: 0 | Q158: 252196.45 | R158: 28845.82 | S158: 907293.0907 | T158: 0 | U158: 0 | V158: 0 | W158: 331.38 | X158: 0 | Y158: 0 | Z158: 37460.51926 | AA158: 0 | AB158: 0 | AC158: 412842.9752 | AD158: 123285.9575 | AE158: 103982.5977 | AF158: 293948.8108 | AG158: 52355.39896 | AH158: 9320.474844 | AI158: 19032.04255 | AJ158: 19255.92225 | AK158: 149162.3792 | AL158: 22062.86104 | AM158: 110895.19 | AN158: 0 | AO158: 0 | AP158: 0 | AQ158: 0 | AR158: 0 | AS158: 0 | AT158: 0 | AU158: 0 | AV158: 0 | AW158: 0 | AX158: 0 | AY158: 0 | AZ158: 0 | BA158: 0 | BB158: 0 | BC158: 0 | BD158: 0 | BE158: 0 | BF158: 0 | BG158: 0 | BH158: 0 | BI158: 0 | BJ158: 0 | BK158: 0 | BL158: 0 | BM158: 0 | BN158: 0 | BO158: 0 | BP158: 0 | BQ158: 0 | BR158: 0 | BS158: 0 | BT158: 0 | BU158: 0 | BV158: 0 | BW158: 0 | BX158: =SUM(BX159,BX163,BX164,BX165) -> 0 | BY158: 0 | BZ158: 0 | CA158: 0 | CB158: 0 | CC158: 0 | CD158: 0 | CE158: 0 | CF158: 0 | CG158: =SUM(CG159,CG163,CG164,CG165) -> 746801.34
A159: 158 | G159: (א) | H159: ='[1]טופס 106 חודשי'!H158 -> ת"א 35 | J159: 6445831.06 | K159: =SUM(K160:K162) -> 170.4959697 | L159: =SUM(L160:L162) -> 69712.93459 | M159: 2224819.825 | N159: 72102.79419 | O159: 2065434.13 | P159: 0 | Q159: 146270.45 | R159: 14364.11 | S159: 561572.7012 | T159: 0 | U159: 0 | V159: 0 | W159: 12.17 | X159: 0 | Y159: 0 | Z159: 23186.3388 | AA159: 0 | AB159: 0 | AC159: 255530.8049 | AD159: 76308.35784 | AE159: 64360.44067 | AF159: 181940.7965 | AG159: 32405.58382 | AH159: 5768.945053 | AI159: 11779.96216 | AJ159: 11918.52933 | AK159: 92324.65346 | AL159: 13655.89618 | AM159: 68639.02 | AN159: 0 | AO159: 0 | AP159: 0 | AQ159: 0 | AR159: 0 | AS159: 0 | AT159: 0 | AU159: 0 | AV159: 0 | AW159: 0 | AX159: 0 | AY159: 0 | AZ159: 0 | BA159: 0 | BB159: 0 | BC159: 0 | BD159: 0 | BE159: 0 | BF159: 0 | BG159: 0 | BH159: 0 | BI159: 0 | BJ159: 0 | BK159: 0 | BL159: 0 | BM159: 0 | BN159: 0 | BO159: 0 | BP159: 0 | BQ159: 0 | BR159: 0 | BS159: 0 | BT159: 0 | BU159: 0 | BV159: 0 | BW159: 0 | BX159: =SUM(BX160:BX162) -> 0 | BY159: 0 | BZ159: 0 | CA159: 0 | CB159: 0 | CC159: 0 | CD159: 0 | CE159: 0 | CF159: 0 | CG159: =SUM(CG160:CG162) -> 453552.12
A160: 159 | H160: a | I160: מניות | J160: 6445831.06 | K160: 170.4959697 | L160: 69712.93459 | M160: 2224819.825 | N160: 72102.79419 | O160: 2065434.13 | P160: 0 | Q160: 146270.45 | R160: 14364.11 | S160: 561572.7012 | T160: 0 | W160: 12.17 | X160: 0 | Y160: 0 | Z160: 23186.3388 | AC160: 255530.8049 | AD160: 76308.35784 | AE160: 64360.44067 | AF160: 181940.7965 | AG160: 32405.58382 | AH160: 5768.945053 | AI160: 11779.96216 | AJ160: 11918.52933 | AK160: 92324.65346 | AL160: 13655.89618 | AM160: 68639.02 | CG160: 453552.12
A161: 160 | H161: b | I161: אופציה 001 Call ח (Long) | J161: 0 | K161: 0 | L161: 0 | M161: 0 | N161: 0 | P161: 0 | S161: 0 | T161: 0 | X161: 0 | Y161: 0 | Z161: 0 | AC161: 0 | AD161: 0 | AE161: 0 | AF161: 0 | AG161: 0 | AH161: 0 | AI161: 0 | AJ161: 0 | AK161: 0 | AL161: 0 | CG161: 0
A162: 161 | H162: c | I162: אופציה 001 Call ח (Short) | J162: 0 | K162: 0 | L162: 0 | M162: 0 | N162: 0 | P162: 0 | S162: 0 | T162: 0 | X162: 0 | Y162: 0 | Z162: 0 | AC162: 0 | AD162: 0 | AE162: 0 | AF162: 0 | AG162: 0 | AH162: 0 | AI162: 0 | AJ162: 0 | AK162: 0 | AL162: 0 | CG162: 0
A163: 162 | G163: (ב) | H163: ='[1]טופס 106 חודשי'!H162 -> ת"א 90 | J163: 2987794.48 | K163: 80.07643309 | L163: 32741.90676 | M163: 1044925.79 | N163: 33864.34639 | O163: 943153.95 | P163: 0 | Q163: 81199.99 | R163: 12053.56 | S163: 250790.3713 | T163: 0 | W163: 319.21 | X163: 0 | Y163: 0 | Z163: 10354.68872 | AC163: 114116.431 | AD163: 34078.20923 | AE163: 28742.47167 | AF163: 81252.17259 | AG163: 14471.87857 | AH163: 2576.328988 | AI163: 5260.760767 | AJ163: 5322.648327 | AK163: 41230.87741 | AL163: 6098.531428 | AM163: 30653.2 | CG163: 214507.08
A164: 163 | G164: (ג) | H164: מניות היתר | J164: 754238.19 | K164: 20.85184007 | L164: 8525.966717 | M164: 272097.8523 | N164: 8818.249111 | O164: 234292.65 | P164: 0 | Q164: 16592.19 | R164: 1629.39 | S164: 63702.02654 | T164: 0 | X164: 0 | Y164: 0 | Z164: 2630.143464 | AC164: 28986.14943 | AD164: 8656.03114 | AE164: 7300.7224 | AF164: 20638.46001 | AG164: 3675.924598 | AH164: 654.400566 | AI164: 1336.25886 | AJ164: 1351.9776 | AK164: 10472.84999 | AL164: 1549.055402 | AM164: 7786.08 | CG164: 53520.96
A165: 164 | G165: (ד) | H165: מניות זרות הנסחרות בארץ | J165: 358439.84 | K165: 9.480959993 | L165: 3876.60509 | M165: 123718.0433 | N165: 4009.500684 | O165: 114854.91 | P165: 0 | Q165: 8133.82 | R165: 798.76 | S165: 31227.99172 | T165: 0 | X165: 0 | Y165: 0 | Z165: 1289.348279 | AC165: 14209.58976 | AD165: 4243.359236 | AE165: 3578.963009 | AF165: 10117.38163 | AG165: 1802.01197 | AH165: 320.8002362 | AI165: 655.0607643 | AJ165: 662.7669912 | AK165: 5133.99837 | AL165: 759.3780296 | AM165: 3816.89 | CG165: 25221.18
A166: 165 | F166: (2) | G166: לא סחיר | J166: 602323.44 | K166: 22.50109694 | L166: 9200.320112 | M166: 293619.1785 | N166: 9515.72031 | O166: 124810.44 | P166: 1012.987651 | Q166: 27069.15 | R166: 7080.52 | S166: 10191.16491 | T166: 0 | U166: 1721.42 | W166: 0 | X166: 0 | Y166: 57.06234899 | Z166: 420.7750874 | AC166: 19741.7343 | AD166: 8196.933493 | AE166: 11130.97127 | AF166: 7674.53035 | AG166: 4245.790068 | AH166: 445.6956979 | AI166: 1265.386507 | AJ166: 2061.278733 | AK166: 3894.38965 | AL166: 1789.199932 | AM166: 18730.36 | CG166: 38425.93
A167: 166 | E167: ב) | F167: בחו"ל | J167: 6224382.33 | K167: =SUM(K168,K172) -> 152.8398223 | L167: =SUM(L168,L172) -> 62493.63288 | M167: 1994422.903 | N167: 64636.00444 | O167: 2197594.99 | P167: 69136.49948 | Q167: 312542.69 | R167: 66808.22 | S167: 340018.7405 | T167: 0 | U167: 30995.05 | V167: 0 | W167: 0 | X167: 0 | Y167: 3894.510518 | Z167: 14038.76951 | AA167: 743.7 | AB167: 0 | AC167: 205097.6206 | AD167: 63894.49504 | AE167: 62859.39115 | AF167: 128379.0437 | AG167: 27843.26201 | AH167: 4630.349379 | AI167: 9863.594957 | AJ167: 11640.55885 | AK167: 65145.09634 | AL167: 11733.30799 | AM167: 48627.42 | AN167: 0 | AO167: 0 | AP167: 0 | AQ167: 0 | AR167: 0 | AS167: 0 | AT167: 0 | AU167: 0 | AV167: 0 | AW167: 0 | AX167: 0 | AY167: 0 | AZ167: 0 | BA167: 0 | BB167: 0 | BC167: 0 | BD167: 0 | BE167: 0 | BF167: 0 | BG167: 0 | BH167: 0 | BI167: 0 | BJ167: 0 | BK167: 0 | BL167: 0 | BM167: 0 | BN167: 0 | BO167: 0 | BP167: 0 | BQ167: 0 | BR167: 0 | BS167: 0 | BT167: 0 | BU167: 0 | BV167: 0 | BW167: 0 | BX167: =SUM(BX168,BX172) -> 0 | BY167: 0 | BZ167: 0 | CA167: 0 | CB167: 0 | CC167: 0 | CD167: 0 | CE167: 0 | CF167: 0 | CG167: =SUM(CG168,CG172) -> 427189.64
A168: 167 | F168: (1) | G168: סחיר | J168: 4193405.48 | K168: =SUM(K169:K171) -> 107.6463656 | L168: =SUM(L169:L171) -> 44014.78848 | M168: 1404688.736 | N168: 45523.67869 | O168: 1374081.03 | P168: 0 | Q168: 120585.52 | R168: 12470.92 | S168: 337727.9338 | T168: 0 | U168: 17079.41 | V168: 0 | W168: 0 | X168: 0 | Y168: 0 | Z168: 13944.18617 | AA168: 5.05 | AB168: 0 | AC168: 167489.9338 | AD168: 50426.23316 | AE168: 45147.05408 | AF168: 117612.6891 | AG168: 21848.6749 | AH168: 3781.306231 | AI168: 7784.456842 | AJ168: 8360.515915 | AK168: 59681.78093 | AL168: 9207.155096 | AM168: 38717.79 | AN168: 0 | AO168: 0 | AP168: 0 | AQ168: 0 | AR168: 0 | AS168: 0 | AT168: 0 | AU168: 0 | AV168: 0 | AW168: 0 | AX168: 0 | AY168: 0 | AZ168: 0 | BA168: 0 | BB168: 0 | BC168: 0 | BD168: 0 | BE168: 0 | BF168: 0 | BG168: 0 | BH168: 0 | BI168: 0 | BJ168: 0 | BK168: 0 | BL168: 0 | BM168: 0 | BN168: 0 | BO168: 0 | BP168: 0 | BQ168: 0 | BR168: 0 | BS168: 0 | BT168: 0 | BU168: 0 | BV168: 0 | BW168: 0 | BX168: =SUM(BX169:BX171) -> 0 | BY168: 0 | BZ168: 0 | CA168: 0 | CB168: 0 | CC168: 0 | CD168: 0 | CE168: 0 | CF168: 0 | CG168: =SUM(CG169:CG171) -> 293118.99
A169: 168 | G169: (א) | H169: חברות ישראליות | J169: 1203992.18 | K169: 31.84635205 | L169: 13021.43776 | M169: 415566.3945 | N169: 13467.83136 | O169: 385795.28 | P169: 0 | Q169: 27321.35 | R169: 2683.02 | S169: 104894.2143 | T169: 0 | X169: 0 | Y169: 0 | Z169: 4330.895689 | AC169: 47729.71863 | AD169: 14253.37196 | AE169: 12021.67678 | AF169: 33984.08892 | AG169: 6052.923729 | AH169: 1077.56137 | AI169: 2200.338037 | AJ169: 2226.223219 | AK169: 17245.00108 | AL169: 2550.736271 | AM169: 12820.84 | CG169: 84717.43
A170: 169 | G170: (ב) | H170: חברות זרות החזקה מתחת ל-10% | J170: 2975593.21 | K170: 75.65065632 | L170: 30932.28107 | M170: 987173.3641 | N170: 31992.68413 | O170: 981431.69 | P170: 0 | Q170: 91818 | R170: 9394.37 | S170: 232559.9529 | T170: 0 | U170: 17007.15 | X170: 0 | Y170: 0 | Z170: 9601.987144 | AA170: 5.05 | AC170: 119109.9849 | AD170: 35966.36818 | AE170: 32899.63178 | AF170: 83473.795 | AG170: 15689.51127 | AH170: 2689.065057 | AI170: 5552.241825 | AJ170: 6092.488219 | AK170: 42358.225 | AL170: 6611.648729 | AM170: 25863.49 | CG170: 207294.58
A171: 170 | G171: (ג) | H171: חברות זרות החזקה של 10% ומעלה | J171: 13820.09 | K171: 0.1493571996 | L171: 61.06964703 | M171: 1948.977793 | N171: 63.16320231 | O171: 6854.06 | P171: 0 | Q171: 1446.17 | R171: 393.53 | S171: 273.7666611 | T171: 0 | U171: 72.26 | X171: 0 | Y171: 0 | Z171: 11.30333889 | AC171: 650.2301955 | AD171: 206.4930204 | AE171: 225.745522 | AF171: 154.8051506 | AG171: 106.239904 | AH171: 14.67980454 | AI171: 31.87697959 | AJ171: 41.804478 | AK171: 78.55484944 | AL171: 44.77009602 | AM171: 33.46 | CG171: 1106.98
A172: 171 | F172: (2) | G172: לא סחיר | J172: 2030976.85 | K172: =SUM(K173:K174) -> 45.19345675 | L172: =SUM(L173:L174) -> 18478.8444 | M172: 589734.1664 | N172: 19112.32575 | O172: 823513.96 | P172: 69136.49948 | Q172: 191957.17 | R172: 54337.3 | S172: 2290.806664 | T172: 0 | U172: 13915.64 | V172: 0 | W172: 0 | X172: 0 | Y172: 3894.510518 | Z172: 94.58333591 | AA172: 738.65 | AB172: 0 | AC172: 37607.68685 | AD172: 13468.26188 | AE172: 17712.33706 | AF172: 10766.35459 | AG172: 5994.58711 | AH172: 849.043148 | AI172: 2079.138115 | AJ172: 3280.042938 | AK172: 5463.315407 | AL172: 2526.15289 | AM172: 9909.63 | AN172: 0 | AO172: 0 | AP172: 0 | AQ172: 0 | AR172: 0 | AS172: 0 | AT172: 0 | AU172: 0 | AV172: 0 | AW172: 0 | AX172: 0 | AY172: 0 | AZ172: 0 | BA172: 0 | BB172: 0 | BC172: 0 | BD172: 0 | BE172: 0 | BF172: 0 | BG172: 0 | BH172: 0 | BI172: 0 | BJ172: 0 | BK172: 0 | BL172: 0 | BM172: 0 | BN172: 0 | BO172: 0 | BP172: 0 | BQ172: 0 | BR172: 0 | BS172: 0 | BT172: 0 | BU172: 0 | BV172: 0 | BW172: 0 | BX172: =SUM(BX173:BX174) -> 0 | BY172: 0 | BZ172: 0 | CA172: 0 | CB172: 0 | CC172: 0 | CD172: 0 | CE172: 0 | CF172: 0 | CG172: =SUM(CG173:CG174) -> 134070.65
A173: 172 | G173: (א) | H173: חברות ישראליות | J173: 0 | K173: 0 | L173: 0 | M173: 0 | N173: 0 | P173: 0 | S173: 0 | T173: 0 | X173: 0 | Y173: 0 | Z173: 0 | AC173: 0 | AD173: 0 | AE173: 0 | AF173: 0 | AG173: 0 | AH173: 0 | AI173: 0 | AJ173: 0 | AK173: 0 | AL173: 0 | CG173: 0
A174: 173 | G174: (ב) | H174: חברות זרות | J174: 2030976.85 | K174: 45.19345675 | L174: 18478.8444 | M174: 589734.1664 | N174: 19112.32575 | O174: 823513.96 | P174: 69136.49948 | Q174: 191957.17 | R174: 54337.3 | S174: 2290.806664 | T174: 0 | U174: 13915.64 | X174: 0 | Y174: 3894.510518 | Z174: 94.58333591 | AA174: 738.65 | AC174: 37607.68685 | AD174: 13468.26188 | AE174: 17712.33706 | AF174: 10766.35459 | AG174: 5994.58711 | AH174: 849.043148 | AI174: 2079.138115 | AJ174: 3280.042938 | AK174: 5463.315407 | AL174: 2526.15289 | AM174: 9909.63 | CG174: 134070.65
A175: 174 | J175: 0 | AC175: 0 | AD175: 0 | AE175: 0 | AF175: 0 | AG175: 0 | AH175: 0 | AI175: 0 | AJ175: 0 | AK175: 0 | AL175: 0 | CG175: 0
A176: 175 | D176: 5) | E176: השקעות בקרנות סל | J176: 7494247.28 | K176: =SUM(K177,K184) -> 171.4038541 | L176: =SUM(L177,L184) -> 70084.15325 | M176: 2236666.904 | N176: 72486.73876 | O176: 2204302.53 | P176: 17754.87468 | Q176: 275199.73 | R176: 45965.41 | S176: 491359.077 | T176: 255.2691468 | U176: 87413.69 | V176: 0 | W176: 6672.03 | X176: 19.8608532 | Y176: 1000.145317 | Z176: 20287.34304 | AA176: 3780.52 | AB176: 240637.86 | AC176: 266898.0739 | AD176: 82385.51752 | AE176: 87494.50088 | AF176: 202427.1646 | AG176: 46231.7565 | AH176: 6025.576146 | AI176: 12718.11248 | AJ176: 16202.58912 | AK176: 102720.3254 | AL176: 19482.3235 | AM176: 53867.93 | AN176: 18429.75 | AO176: 191161.32 | AP176: 51769.63 | AQ176: 51932.31 | AR176: 48080.1 | AS176: 0 | AT176: 0 | AU176: 0 | AV176: 0 | AW176: 0 | AX176: 0 | AY176: 0 | AZ176: 0 | BA176: 0 | BB176: 0 | BC176: 0 | BD176: 0 | BE176: 0 | BF176: 0 | BG176: 0 | BH176: 0 | BI176: 0 | BJ176: 0 | BK176: 0 | BL176: 0 | BM176: 0 | BN176: 0 | BO176: 0 | BP176: 0 | BQ176: 0 | BR176: 0 | BS176: 0 | BT176: 0 | BU176: 0 | BV176: 0 | BW176: 0 | BX176: =SUM(BX177,BX184) -> 0 | BY176: 0 | BZ176: 0 | CA176: 0 | CB176: 0 | CC176: 0 | CD176: 0 | CE176: 0 | CF176: 0 | CG176: =SUM(CG177,CG184) -> 462362.76
A177: 176 | E177: א) | F177: בישראל | J177: 1844038.52 | K177: =SUM(K178:K183) -> 32.96838742 | L177: =SUM(L178:L183) -> 13480.21915 | M177: 430207.952 | N177: 13942.34044 | O177: 384707.94 | P177: 17620.19149 | Q177: 96652.26 | R177: 27613.18 | S177: 72362.6642 | T177: 255.2691468 | U177: 2436.99 | V177: 0 | W177: 6614.19 | X177: 19.8608532 | Y177: 992.5585124 | Z177: 2987.725801 | AA177: 0 | AB177: 129770.11 | AC177: 46893.86904 | AD177: 15797.87253 | AE177: 25621.41221 | AF177: 48586.26916 | AG177: 16911.8154 | AH177: 1058.690962 | AI177: 2438.767467 | AJ177: 4744.677785 | AK177: 24654.78084 | AL177: 7126.734598 | AM177: 8305.97 | AN177: 18429.75 | AO177: 191161.32 | AP177: 51769.63 | AQ177: 51932.31 | AR177: 48080.1 | AS177: 0 | AT177: 0 | AU177: 0 | AV177: 0 | AW177: 0 | AX177: 0 | AY177: 0 | AZ177: 0 | BA177: 0 | BB177: 0 | BC177: 0 | BD177: 0 | BE177: 0 | BF177: 0 | BG177: 0 | BH177: 0 | BI177: 0 | BJ177: 0 | BK177: 0 | BL177: 0 | BM177: 0 | BN177: 0 | BO177: 0 | BP177: 0 | BQ177: 0 | BR177: 0 | BS177: 0 | BT177: 0 | BU177: 0 | BV177: 0 | BW177: 0 | BX177: 0 | BY177: 0 | BZ177: 0 | CA177: 0 | CB177: 0 | CC177: 0 | CD177: 0 | CE177: 0 | CF177: 0 | CG177: 80828.13
A178: 177 | F178: (1) | G178: שעוקבות אחר מדדי מניות בארץ | J178: 588114.46 | K178: 13.31831611 | L178: 5445.63547 | M178: 173792.1065 | N178: 5632.319682 | O178: 161341.67 | P178: 0 | Q178: 11425.94 | R178: 1122.05 | S178: 43867.32607 | T178: 0 | X178: 0 | Y178: 0 | Z178: 1811.203932 | AB178: 36566.5 | AC178: 19960.82797 | AD178: 5960.836801 | AE178: 5027.522791 | AF178: 14212.32812 | AG178: 2531.367449 | AH178: 450.6420266 | AI178: 920.1931992 | AJ178: 931.0172094 | AK178: 7211.951876 | AL178: 1066.732551 | AM178: 5361.74 | AR178: 48031.94 | CG178: 35429.29
A179: 178 | F179: (2) | G179: שעוקבות אחר מדדי מניות בחו"ל | J179: 546019.59 | K179: 8.950164779 | L179: 3659.571854 | M179: 116791.6407 | N179: 3785.027237 | O179: 117709.51 | P179: 0 | Q179: 11517.01 | R179: 1182.03 | S179: 27102.19839 | T179: 0 | U179: 2436.99 | X179: 0 | Y179: 0 | Z179: 1119.001605 | AC179: 14228.09205 | AD179: 4305.583482 | AE179: 3998.956836 | AF179: 9944.479614 | AG179: 1887.870641 | AH179: 321.2179497 | AI179: 664.6665177 | AJ179: 740.5431639 | AK179: 5046.260386 | AL179: 795.5593587 | AM179: 2944.23 | AO179: 191161.32 | CG179: 24668.88
A180: 179 | F180: (3) | G180: שעוקבות אחר מדדי אג"ח בארץ | J180: 709904.47 | K180: 10.69990653 | L180: 4375.011829 | M180: 139624.2047 | N180: 4524.993523 | O180: 105656.76 | P180: 17620.19149 | Q180: 73709.31 | R180: 25309.1 | S180: 1393.139736 | T180: 255.2691468 | W180: 6614.19 | X180: 19.8608532 | Y180: 992.5585124 | Z180: 57.5202638 | AB180: 93203.61 | AC180: 12704.94901 | AD180: 5531.45225 | AE180: 16594.93259 | AF180: 24429.46143 | AG180: 12492.57731 | AH180: 286.8309861 | AI180: 853.9077502 | AJ180: 3073.117412 | AK180: 12396.56857 | AL180: 5264.442689 | AN180: 18429.75 | AP180: 51769.63 | AQ180: 51932.31 | AR180: 48.16 | CG180: 20729.96
A181: 180 | F181: (4) | G181: שעוקבות אחר מדדי אג"ח בחו"ל | J181: 0 | K181: 0 | L181: 0 | M181: 0 | N181: 0 | P181: 0 | S181: 0 | T181: 0 | X181: 0 | Y181: 0 | Z181: 0 | AC181: 0 | AD181: 0 | AE181: 0 | AF181: 0 | AG181: 0 | AH181: 0 | AI181: 0 | AJ181: 0 | AK181: 0 | AL181: 0 | CG181: 0
A182: 181 | F182: (5) | G182: בחסר | J182: 0 | K182: 0 | L182: 0 | M182: 0 | N182: 0 | P182: 0 | S182: 0 | T182: 0 | X182: 0 | Y182: 0 | Z182: 0 | AC182: 0 | AD182: 0 | AE182: 0 | AF182: 0 | AG182: 0 | AH182: 0 | AI182: 0 | AJ182: 0 | AK182: 0 | AL182: 0 | CG182: 0
A183: 182 | F183: (6) | G183: אחר | J183: 0 | K183: 0 | L183: 0 | M183: 0 | N183: 0 | P183: 0 | S183: 0 | T183: 0 | X183: 0 | Y183: 0 | Z183: 0 | AC183: 0 | AD183: 0 | AE183: 0 | AF183: 0 | AG183: 0 | AH183: 0 | AI183: 0 | AJ183: 0 | AK183: 0 | AL183: 0 | CG183: 0
A184: 183 | E184: ב) | F184: בחו"ל | J184: 5650208.76 | K184: =SUM(K185:K188) -> 138.4354667 | L184: =SUM(L185:L188) -> 56603.9341 | M184: 1806458.952 | N184: 58544.39832 | O184: 1819594.59 | P184: 134.6831953 | Q184: 178547.47 | R184: 18352.23 | S184: 418996.4128 | T184: 0 | U184: 84976.7 | V184: 0 | W184: 57.84 | X184: 0 | Y184: 7.58680472 | Z184: 17299.61724 | AA184: 3780.52 | AB184: 110867.75 | AC184: 220004.2048 | AD184: 66587.64498 | AE184: 61873.08867 | AF184: 153840.8954 | AG184: 29319.9411 | AH184: 4966.885184 | AI184: 10279.34502 | AJ184: 11457.91133 | AK184: 78065.54456 | AL184: 12355.5889 | AM184: 45561.96 | AN184: 0 | AO184: 0 | AP184: 0 | AQ184: 0 | AR184: 0 | AS184: 0 | AT184: 0 | AU184: 0 | AV184: 0 | AW184: 0 | AX184: 0 | AY184: 0 | AZ184: 0 | BA184: 0 | BB184: 0 | BC184: 0 | BD184: 0 | BE184: 0 | BF184: 0 | BG184: 0 | BH184: 0 | BI184: 0 | BJ184: 0 | BK184: 0 | BL184: 0 | BM184: 0 | BN184: 0 | BO184: 0 | BP184: 0 | BQ184: 0 | BR184: 0 | BS184: 0 | BT184: 0 | BU184: 0 | BV184: 0 | BW184: 0 | BX184: 0 | BY184: 0 | BZ184: 0 | CA184: 0 | CB184: 0 | CC184: 0 | CD184: 0 | CE184: 0 | CF184: 0 | CG184: 381534.63
A185: 184 | F185: (1) | G185: שעוקבות אחר מדדי מניות | J185: 5596789.73 | K185: 138.2810741 | L185: 56540.80559 | M185: 1804444.268 | N185: 58479.10567 | O185: 1817593.37 | P185: 0 | Q185: 177512.39 | R185: 18214.89 | S185: 418996.4128 | T185: 0 | U185: 66425.75 | X185: 0 | Y185: 0 | Z185: 17299.61724 | AB185: 86976.2 | AC185: 219735.198 | AD185: 66488.50027 | AE185: 61715.40009 | AF185: 153599.6326 | AG185: 29147.04887 | AH185: 4960.812 | AI185: 10264.03973 | AJ185: 11428.70991 | AK185: 77943.11735 | AL185: 12282.73113 | AM185: 45561.96 | CG185: 381041.49
A186: 185 | F186: (2) | G186: שעוקבות אחר מדדי אג"ח | J186: 53419.03 | K186: 0.1543925376 | L186: 63.12851203 | M186: 2014.684447 | N186: 65.29264816 | O186: 2001.22 | P186: 134.6831953 | Q186: 1035.08 | R186: 137.34 | S186: 0 | T186: 0 | U186: 18550.95 | W186: 57.84 | X186: 0 | Y186: 7.58680472 | Z186: 0 | AA186: 3780.52 | AB186: 23891.55 | AC186: 269.0068162 | AD186: 99.14471698 | AE186: 157.6885838 | AF186: 241.2627923 | AG186: 172.892235 | AH186: 6.073183787 | AI186: 15.30528302 | AJ186: 29.20141616 | AK186: 122.4272077 | AL186: 72.85776503 | CG186: 493.14
A187: 186 | F187: (3) | G187: בחסר | J187: 0 | K187: 0 | L187: 0 | M187: 0 | N187: 0 | P187: 0 | S187: 0 | T187: 0 | X187: 0 | Y187: 0 | Z187: 0 | AC187: 0 | AD187: 0 | AE187: 0 | AF187: 0 | AG187: 0 | AH187: 0 | AI187: 0 | AJ187: 0 | AK187: 0 | AL187: 0 | CG187: 0
A188: 187 | F188: (4) | G188: אחר | J188: 0 | K188: 0 | L188: 0 | M188: 0 | N188: 0 | P188: 0 | S188: 0 | T188: 0 | X188: 0 | Y188: 0 | Z188: 0 | AC188: 0 | AD188: 0 | AE188: 0 | AF188: 0 | AG188: 0 | AH188: 0 | AI188: 0 | AJ188: 0 | AK188: 0 | AL188: 0 | CG188: 0
A189: 188 | AC189: 0 | AD189: 0 | AE189: 0 | AF189: 0 | AG189: 0 | AH189: 0 | AI189: 0 | AJ189: 0 | AK189: 0 | AL189: 0 | CG189: 0
A190: 189 | D190: 6) | E190: תעודות השתתפות בקרנות נאמנות | J190: 3464336.78 | K190: =SUM(K191,K192) -> 80.28252393 | L190: =SUM(L191,L192) -> 32826.17384 | M190: 1047615.091 | N190: 33951.50226 | O190: 1049083.99 | P190: 29031.04936 | Q190: 283403.54 | R190: 36322.85 | S190: 143954.8885 | T190: 0 | U190: 53079.89 | V190: 0 | W190: 12466.39 | X190: 0 | Y190: 1635.340637 | Z190: 5943.641507 | AA190: 5108.43 | AB190: 0 | AC190: 132665.9413 | AD190: 43966.65815 | AE190: 54961.251 | AF190: 104208.8689 | AG190: 47172.25508 | AH190: 2995.108657 | AI190: 6787.27185 | AJ190: 10177.949 | AK190: 52880.10108 | AL190: 19878.65492 | AM190: 15494.23 | AN190: 304.82 | AO190: 0 | AP190: 828.41 | AQ190: 879.26 | AR190: 826.19 | AS190: 0 | AT190: 0 | AU190: 0 | AV190: 0 | AW190: 0 | AX190: 0 | AY190: 0 | AZ190: 0 | BA190: 0 | BB190: 0 | BC190: 0 | BD190: 0 | BE190: 0 | BF190: 0 | BG190: 0 | BH190: 0 | BI190: 0 | BJ190: 0 | BK190: 0 | BL190: 0 | BM190: 0 | BN190: 0 | BO190: 0 | BP190: 0 | BQ190: 0 | BR190: 0 | BS190: 0 | BT190: 0 | BU190: 0 | BV190: 0 | BW190: 0 | BX190: =SUM(BX191,BX192) -> 0 | BY190: 0 | BZ190: 0 | CA190: 0 | CB190: 0 | CC190: 0 | CD190: 0 | CE190: 0 | CF190: 0 | CG190: =SUM(CG191,CG192) -> 235806.75
A191: 190 | E191: א) | F191: בישראל | J191: 19729.11 | K191: 0.432679601 | L191: 176.915412 | M191: 5646.081582 | N191: 182.9803266 | O191: 5241.6 | P191: 0 | Q191: 371.2 | R191: 568.88 | S191: 1425.138562 | T191: 0 | X191: 0 | Y191: 0 | Z191: 58.84143843 | AC191: 648.4797149 | AD191: 193.6548841 | AE191: 163.3332766 | AF191: 461.7221499 | AG191: 82.23549683 | AH191: 14.64028513 | AI191: 29.89511595 | AJ191: 30.24672342 | AK191: 234.2978501 | AL191: 34.65450317 | AM191: 174.19 | AN191: 304.82 | AP191: 828.41 | AQ191: 879.26 | AR191: 826.19 | CG191: 1151.01
A192: 191 | E192: ב) | F192: בחו"ל | J192: 3444607.67 | K192: =SUM(K193:K196) -> 79.84984433 | L192: =SUM(L193:L196) -> 32649.25843 | M192: 1041969.01 | N192: 33768.52193 | O192: 1043842.39 | P192: 29031.04936 | Q192: 283032.34 | R192: 35753.97 | S192: 142529.7499 | T192: 0 | U192: 53079.89 | V192: 0 | W192: 12466.39 | X192: 0 | Y192: 1635.340637 | Z192: 5884.800069 | AA192: 5108.43 | AB192: 0 | AC192: 132017.4616 | AD192: 43773.00327 | AE192: 54797.91773 | AF192: 103747.1468 | AG192: 47090.01959 | AH192: 2980.468372 | AI192: 6757.376734 | AJ192: 10147.70227 | AK192: 52645.80323 | AL192: 19844.00041 | AM192: 15320.04 | AN192: 0 | AO192: 0 | AP192: 0 | AQ192: 0 | AR192: 0 | AS192: 0 | AT192: 0 | AU192: 0 | AV192: 0 | AW192: 0 | AX192: 0 | AY192: 0 | AZ192: 0 | BA192: 0 | BB192: 0 | BC192: 0 | BD192: 0 | BE192: 0 | BF192: 0 | BG192: 0 | BH192: 0 | BI192: 0 | BJ192: 0 | BK192: 0 | BL192: 0 | BM192: 0 | BN192: 0 | BO192: 0 | BP192: 0 | BQ192: 0 | BR192: 0 | BS192: 0 | BT192: 0 | BU192: 0 | BV192: 0 | BW192: 0 | BX192: 0 | BY192: 0 | BZ192: 0 | CA192: 0 | CB192: 0 | CC192: 0 | CD192: 0 | CE192: 0 | CF192: 0 | CG192: 234655.74
A193: 192 | F193: (1) | G193: אג"ח קנצרני | J193: 965523.44 | K193: 20.09246717 | L193: 8215.471909 | M193: 262188.7155 | N193: 8497.110095 | O193: 260436.21 | P193: 17528.06125 | Q193: 134703.4 | R193: 17873.47 | S193: 1505.942318 | T193: 0 | U193: 24391.82 | W193: 7526.73 | X193: 0 | Y193: 987.3687476 | Z193: 62.17768193 | AA193: 3084.38 | AC193: 35008.17428 | AD193: 12901.99785 | AE193: 20521.83311 | AF193: 31397.11946 | AG193: 22500.33265 | AH193: 790.355722 | AI193: 1991.722148 | AJ193: 3800.316893 | AK193: 15932.26054 | AL193: 9481.767353 | CG193: 64176.61
A194: 193 | F194: (2) | G194: אג"ח ממשלתי | J194: 0 | K194: 0 | L194: 0 | M194: 0 | N194: 0 | P194: 0 | S194: 0 | T194: 0 | X194: 0 | Y194: 0 | Z194: 0 | AC194: 0 | AD194: 0 | AE194: 0 | AF194: 0 | AG194: 0 | AH194: 0 | AI194: 0 | AJ194: 0 | AK194: 0 | AL194: 0 | CG194: 0
A195: 194 | F195: (3) | G195: מניות | J195: 1846472.07 | K195: 46.5713442 | L195: 19042.2394 | M195: 607714.3645 | N195: 19695.03474 | O195: 612490.45 | P195: 0 | Q195: 59927.73 | R195: 6150.55 | S195: 141023.8076 | T195: 0 | U195: 12680.68 | X195: 0 | Y195: 0 | Z195: 5822.622387 | AC195: 74034.57186 | AD195: 22403.68275 | AE195: 20808.22744 | AF195: 51745.22031 | AG195: 9823.346333 | AH195: 1671.428137 | AI195: 3458.527249 | AJ195: 3853.352565 | AK195: 26257.76969 | AL195: 4139.613667 | AM195: 15320.04 | CG195: 128362.24
A196: 195 | F196: (4) | G196: אחר | J196: 632612.16 | K196: 13.18603296 | L196: 5391.547113 | M196: 172065.9298 | N196: 5576.377098 | O196: 170915.73 | P196: 11502.98811 | Q196: 88401.21 | R196: 11729.95 | S196: 0 | T196: 0 | U196: 16007.39 | W196: 4939.66 | X196: 0 | Y196: 647.9718892 | Z196: 0 | AA196: 2024.05 | AC196: 22974.71549 | AD196: 8467.322663 | AE196: 13467.85719 | AF196: 20604.80701 | AG196: 14766.34061 | AH196: 518.6845136 | AI196: 1307.127337 | AJ196: 2494.032814 | AK196: 10455.77299 | AL196: 6222.619393 | CG196: 42116.89
A197: 196 | AC197: 0 | AD197: 0 | AE197: 0 | AF197: 0 | AG197: 0 | AH197: 0 | AI197: 0 | AJ197: 0 | AK197: 0 | AL197: 0 | CG197: 0
A198: 197 | D198: 7) | E198: קרנות השקעה | J198: 7493937.45 | K198: =SUM(K204,K199) -> 190.9209773 | L198: =SUM(L204,L199) -> 78064.37671 | M198: 2491347.897 | N198: 80740.53576 | O198: 2539345.28 | P198: 44526.7926 | Q198: 611182.99 | R198: 177663.64 | S198: 178875.7194 | T198: 0 | U198: 55326.94 | V198: 0 | W198: 1232.04 | X198: 0 | Y198: 2508.227397 | Z198: 7385.460555 | AA198: 2392.71 | AB198: 0 | AC198: 220408.9277 | AD198: 77513.15024 | AE198: 119466.5552 | AF198: 108408.2505 | AG198: 46001.94174 | AH198: 4976.022336 | AI198: 11965.94976 | AJ198: 22123.30476 | AK198: 55011.04948 | AL198: 19385.47826 | AM198: 65830.24 | AN198: 0 | AO198: 0 | AP198: 0 | AQ198: 0 | AR198: 0 | AS198: 0 | AT198: 0 | AU198: 0 | AV198: 0 | AW198: 0 | AX198: 0 | AY198: 0 | AZ198: 0 | BA198: 0 | BB198: 0 | BC198: 0 | BD198: 0 | BE198: 0 | BF198: 0 | BG198: 0 | BH198: 0 | BI198: 0 | BJ198: 0 | BK198: 0 | BL198: 0 | BM198: 0 | BN198: 0 | BO198: 0 | BP198: 0 | BQ198: 0 | BR198: 0 | BS198: 0 | BT198: 0 | BU198: 0 | BV198: 0 | BW198: 0 | BX198: =SUM(BX204,BX199) -> 0 | BY198: 0 | BZ198: 0 | CA198: 0 | CB198: 0 | CC198: 0 | CD198: 0 | CE198: 0 | CF198: 0 | CG198: =SUM(CG204,CG199) -> 472063.05
A199: 198 | E199: א) | F199: בישראל | J199: 1557702.73 | K199: =SUM(K200:K203) -> 55.77606008 | L199: =SUM(L200:L203) -> 22805.89292 | M199: 727827.6693 | N199: 23587.71171 | O199: 476122.21 | P199: 2721.817966 | Q199: 91147.82 | R199: 22818.6 | S199: 28520.89302 | T199: 0 | U199: 4296.51 | V199: 0 | W199: 197.48 | X199: 0 | Y199: 153.3220336 | Z199: 1177.576985 | AA199: 0 | AB199: 0 | AC199: 17992.76949 | AD199: 7167.188482 | AE199: 8718.232153 | AF199: 9450.776163 | AG199: 2454.802396 | AH199: 406.2105098 | AI199: 1106.421518 | AJ199: 1614.477847 | AK199: 4795.733837 | AL199: 1034.467604 | AM199: 12254.25 | AN199: 0 | AO199: 0 | AP199: 0 | AQ199: 0 | AR199: 0 | AS199: 0 | AT199: 0 | AU199: 0 | AV199: 0 | AW199: 0 | AX199: 0 | AY199: 0 | AZ199: 0 | BA199: 0 | BB199: 0 | BC199: 0 | BD199: 0 | BE199: 0 | BF199: 0 | BG199: 0 | BH199: 0 | BI199: 0 | BJ199: 0 | BK199: 0 | BL199: 0 | BM199: 0 | BN199: 0 | BO199: 0 | BP199: 0 | BQ199: 0 | BR199: 0 | BS199: 0 | BT199: 0 | BU199: 0 | BV199: 0 | BW199: 0 | BX199: =SUM(BX200:BX203) -> 0 | BY199: 0 | BZ199: 0 | CA199: 0 | CB199: 0 | CC199: 0 | CD199: 0 | CE199: 0 | CF199: 0 | CG199: =SUM(CG200:CG203) -> 89274.12
A200: 199 | F200: (1) | G200: קרנות הון סיכון | J200: 156285.25 | K200: 6.322144113 | L200: 2585.018402 | M200: 82498.32291 | N200: 2673.636548 | O200: 37103.07 | P200: 0 | Q200: 6278.02 | R200: 1695.09 | S200: 2368.258803 | T200: 0 | U200: 444.45 | X200: 0 | Y200: 0 | Z200: 97.78119707 | AC200: 3431.851426 | AD200: 1327.958806 | AE200: 944.9755645 | AF200: 1860.69343 | AG200: 117.7285314 | AH200: 77.47857372 | AI200: 205.0011941 | AJ200: 174.9944355 | AK200: 944.1965703 | AL200: 49.61146856 | AM200: 1538.85 | CG200: 9861.94
A201: 200 | F201: (2) | G201: קרנות גידור | J201: 383342.82 | K201: 12.20548194 | L201: 4990.616292 | M201: 159270.6164 | N201: 5161.701792 | O201: 136355.86 | P201: 1770.780609 | Q201: 19403.47 | R201: 3630.11 | S201: 15277.85454 | T201: 0 | U201: 330.24 | W201: 197.48 | X201: 0 | Y201: 99.74939083 | Z201: 630.7954619 | AC201: 5198.937135 | AD201: 1505.353783 | AE201: 2148.923557 | AF201: 2313.081896 | AG201: 1125.533726 | AH201: 117.372865 | AI201: 232.3862169 | AJ201: 397.9464433 | AK201: 1173.758104 | AL201: 474.3062739 | AM201: 394.6 | CG201: 21129.14
A202: 201 | F202: (3) | G202: קרנות נדל"ן | J202: 45555.62 | K202: 0.1369215718 | L202: 55.98492794 | M202: 1786.703979 | N202: 57.90417175 | O202: 25026.4 | P202: 430.3292337 | Q202: 6429.03 | R202: 1786.38 | S202: 0 | T202: 0 | U202: 215.7 | X202: 0 | Y202: 24.2407663 | Z202: 0 | AC202: 1985.397042 | AD202: 709.4672936 | AE202: 899.8011475 | AF202: 269.2638439 | AG202: 470.0980322 | AH202: 44.82295764 | AI202: 109.5227064 | AJ202: 166.6288525 | AK202: 136.6361561 | AL202: 198.1019678 | CG202: 4753.07
... 335 more rows

Sheet גיליון2

Sheet גיליון3
